Body Name,Body,Supplier Name,Spending Service,Nature of Spend,Ledger Date,Invoice Reference,Net Amount (excluding VAT)
Lancaster City Council,30UH,A1 Supaskips Ltd,Environmental Services,Materials - General,11/03/2016,17515,829.40
Lancaster City Council,30UH,A1 Supaskips Ltd,Environmental Services,Materials - General,14/03/2016,17007,1702.80
Lancaster City Council,30UH,A1 Supaskips Ltd,Environmental Services,Materials - General,14/03/2016,17339,1124.20
Lancaster City Council,30UH,A1 Supaskips Ltd,Environmental Services,Materials - General,14/03/2016,17566,532.40
Lancaster City Council,30UH,A1 Supaskips Ltd,Environmental Services,Materials - General,23/03/2016,16486,536.80
Lancaster City Council,30UH,A1 Supaskips Ltd,Environmental Services,Materials - General,23/03/2016,16787,525.80
Lancaster City Council,30UH,A1 Supaskips Ltd,Environmental Services,Playground Improvements,11/03/2016,17215,1915.43
Lancaster City Council,30UH,A1 Supaskips Ltd,Environmental Services,Services - Waste Disposal,13/01/2016,67930,605.38
Lancaster City Council,30UH,A1 Supaskips Ltd,Environmental Services,Services - Waste Disposal,18/01/2016,68353,1112.92
Lancaster City Council,30UH,A1 Supaskips Ltd,Environmental Services,Services - Waste Disposal,21/01/2016,68179,1095.20
Lancaster City Council,30UH,A1 Supaskips Ltd,Environmental Services,Services - Waste Disposal,01/02/2016,68577,3308.78
Lancaster City Council,30UH,A1 Supaskips Ltd,Environmental Services,Services - Waste Disposal,02/03/2016,68939,1318.06
Lancaster City Council,30UH,A1 Supaskips Ltd,Environmental Services,Services - Waste Disposal,07/03/2016,67600,2967.18
Lancaster City Council,30UH,A1 Supaskips Ltd,Environmental Services,Services - Waste Disposal,07/03/2016,69092,512.40
Lancaster City Council,30UH,A1 Supaskips Ltd,Environmental Services,Services - Waste Disposal,11/03/2016,68754,1937.15
Lancaster City Council,30UH,A1 Supaskips Ltd,Environmental Services,Services - Waste Disposal,21/03/2016,69359,596.80
Lancaster City Council,30UH,A1 Supaskips Ltd,Environmental Services,Services - Waste Disposal,23/03/2016,16787,503.60
Lancaster City Council,30UH,A1 Supaskips Ltd,Environmental Services,Services - Waste Disposal,31/03/2016,69557,819.08
Lancaster City Council,30UH,A1 Supaskips Ltd,Environmental Services,Services - Waste Disposal,31/03/2016,69721,1193.60
Lancaster City Council,30UH,A1 Supaskips Ltd,Environmental Services,Services - Waste Disposal,31/03/2016,69843,1790.40
Lancaster City Council,30UH,A1 Supaskips Ltd,Environmental Services,Services - Waste Disposal,31/03/2016,69993,810.80
Lancaster City Council,30UH,Abritas Ltd,Health & Housing,Software Miscellaneous,03/03/2016,6134,5330.00
Lancaster City Council,30UH,Absolute Digital Print,Regeneration and Planning,Marketing,09/02/2016,24445,756.00
Lancaster City Council,30UH,Acorn Environment Services Ltd,Environmental Services,Contracted Services,03/03/2016,41781,1200.00
Lancaster City Council,30UH,Acorn Environment Services Ltd,Environmental Services,Contracted Services,31/03/2016,41990,700.00
Lancaster City Council,30UH,Acorn Environment Services Ltd,Environmental Services,R & M - Buildings,22/03/2016,41953,1050.00
Lancaster City Council,30UH,Acorn Environment Services Ltd,Environmental Services,Void Maintenance - External,03/03/2016,41796,1320.00
Lancaster City Council,30UH,Acorn Environment Services Ltd,Environmental Services,Void Maintenance - External,30/03/2016,41977,1320.00
Lancaster City Council,30UH,Acorn Environment Services Ltd,Environmental Services,Void Maintenance - External,31/03/2016,42012,539.75
Lancaster City Council,30UH,Adam Crowe t/a Adam Crowe Conservation,Regeneration and Planning,Grounds Maintenance - Other,23/02/2016,L25AS,1000.00
Lancaster City Council,30UH,Adastra,Regeneration and Planning,Exhibitions & Events - Guarantees,17/03/2016,6933.2,580.00
Lancaster City Council,30UH,Adlec Limited,Environmental Services,Contracted Services,23/03/2016,AD5231,782.00
Lancaster City Council,30UH,Adlec Limited,Environmental Services,Materials - General,29/02/2016,AD5202,920.00
Lancaster City Council,30UH,Adlec Limited,Environmental Services,Void Maintenance - External,29/02/2016,AD5184,552.00
Lancaster City Council,30UH,A G Electrics,Environmental Services,Capital Payments To Contractors,28/01/2016,091923,4000.00
Lancaster City Council,30UH,A G Electrics,Environmental Services,Capital Payments To Contractors,28/01/2016,091923,2920.00
Lancaster City Council,30UH,A G Electrics,Environmental Services,Capital Payments To Contractors,17/02/2016,091944,4000.00
Lancaster City Council,30UH,A G Electrics,Environmental Services,Capital Payments To Contractors,17/02/2016,091944,615.00
Lancaster City Council,30UH,A G Electrics,Environmental Services,Capital Payments To Contractors,07/03/2016,091951,1800.00
Lancaster City Council,30UH,A G Electrics,Environmental Services,Capital Payments To Contractors,16/03/2016,091959,3200.00
Lancaster City Council,30UH,Agripa Solutions Ltd,Environmental Services,Printing & Stationery,07/03/2016,4474,680.00
Lancaster City Council,30UH,Air Quality Consultants Ltd,Health & Housing,Air Quality Management,31/03/2016,6548,1800.00
Lancaster City Council,30UH,Airquee Limited,Health & Housing,Equipment and Tools - General,02/02/2016,IN16887,3770.00
Lancaster City Council,30UH,Airquee Limited,Health & Housing,R & M - Buildings,19/01/2016,IN16783,599.00
Lancaster City Council,30UH,A. J. Hayton Welding & Fabrication Ltd,Environmental Services,Repair & Mtce Of Vehicles,09/03/2016,2209,825.00
Lancaster City Council,30UH,Aligned Assets Limited,Resources,Software - LLPG,24/03/2016,INV9953,1799.00
Lancaster City Council,30UH,Alliance Leisure Services Limited,Health & Housing,Capital Payments To Contractors,17/03/2016,2888,64750.41
Lancaster City Council,30UH,Alliance Leisure Services Limited,Health & Housing,Capital Payments To Contractors,17/03/2016,2888,8750.00
Lancaster City Council,30UH,Alliance Leisure Services Limited,Health & Housing,Capital Payments To Contractors,17/03/2016,2889,6000.00
Lancaster City Council,30UH,Alliance Leisure Services Limited,Health & Housing,Capital Payments To Contractors,17/03/2016,2889,4750.00
Lancaster City Council,30UH,Alliance Leisure Services Limited,Health & Housing,Capital Payments To Contractors,17/03/2016,2889,4550.00
Lancaster City Council,30UH,Alliance Leisure Services Limited,Health & Housing,Capital Payments To Contractors,17/03/2016,2889,7500.00
Lancaster City Council,30UH,Alliance Leisure Services Limited,Health & Housing,Capital Payments To Contractors,17/03/2016,2889,938.00
Lancaster City Council,30UH,Alliance Leisure Services Limited,Health & Housing,Capital Payments To Contractors,17/03/2016,2889,25000.00
Lancaster City Council,30UH,Alliance Leisure Services Limited,Health & Housing,Capital Payments To Contractors,17/03/2016,2889,18872.00
Lancaster City Council,30UH,Aluminium Access Products Ltd,Regeneration and Planning,Service Training Budget,11/02/2016,7354,660.00
Lancaster City Council,30UH,A M Support Services Limited,Health & Housing,Services - General,07/01/2016,8288,1580.31
Lancaster City Council,30UH,A M Support Services Limited,Health & Housing,Services - General,17/02/2016,8443,1580.31
Lancaster City Council,30UH,A M Support Services Limited,Health & Housing,Services - General,17/02/2016,8573,1726.34
Lancaster City Council,30UH,A M Support Services Limited,Health & Housing,Services - General,10/03/2016,8714,1726.34
Lancaster City Council,30UH,Anchor Flooring Limited,Environmental Services,Capital Payments To Contractors,27/01/2016,AF/4843,2157.00
Lancaster City Council,30UH,Anchor Flooring Limited,Environmental Services,Capital Payments To Contractors,27/01/2016,AF/4854,1476.00
Lancaster City Council,30UH,Anchor Flooring Limited,Environmental Services,Capital Payments To Contractors,23/02/2016,AF/4821,1456.00
Lancaster City Council,30UH,Anchor Flooring Limited,Environmental Services,Capital Payments To Contractors,23/02/2016,AF/4888,1428.00
Lancaster City Council,30UH,Anchor Flooring Limited,Environmental Services,Capital Payments To Contractors,30/03/2016,AF/4918,1400.00
Lancaster City Council,30UH,Anchor Flooring Limited,Environmental Services,Capital Payments To Contractors,31/03/2016,AF/4816,2156.00
Lancaster City Council,30UH,Anchor Flooring Limited,Environmental Services,Capital Payments To Contractors,31/03/2016,AF/4819,714.00
Lancaster City Council,30UH,Anchor Flooring Limited,Environmental Services,Capital Payments To Contractors,31/03/2016,AF/4917,1051.00
Lancaster City Council,30UH,Anchor Flooring Limited,Environmental Services,Capital Payments To Contractors,31/03/2016,AF/4923,3115.00
Lancaster City Council,30UH,Anchor Flooring Limited,Environmental Services,Contracted Services,03/03/2016,AF/4857,644.00
Lancaster City Council,30UH,Anchor Flooring Limited,Environmental Services,Void Maintenance - External,23/02/2016,AF/4887,578.00
Lancaster City Council,30UH,Angel Springs Limited (C/O PHS),Resources,R & M - Buildings,26/02/2016,63344922,675.00
Lancaster City Council,30UH,Anglo Espanol Ltd t/a Plastech Windows,Environmental Services,Contracted Services,05/01/2016,5098,745.83
Lancaster City Council,30UH,Anglo Espanol Ltd t/a Plastech Windows,Environmental Services,Contracted Services,14/01/2016,5689,579.17
Lancaster City Council,30UH,Anglo Espanol Ltd t/a Plastech Windows,Environmental Services,Contracted Services,18/01/2016,5688,1225.00
Lancaster City Council,30UH,Anglo Espanol Ltd t/a Plastech Windows,Environmental Services,Contracted Services,18/01/2016,5690,579.17
Lancaster City Council,30UH,Anglo Espanol Ltd t/a Plastech Windows,Environmental Services,Contracted Services,02/02/2016,5545,941.67
Lancaster City Council,30UH,Anglo Espanol Ltd t/a Plastech Windows,Environmental Services,Contracted Services,09/02/2016,5765,579.17
Lancaster City Council,30UH,Anglo Espanol Ltd t/a Plastech Windows,Environmental Services,Contracted Services,02/03/2016,5764,1233.33
Lancaster City Council,30UH,Anglo Espanol Ltd t/a Plastech Windows,Environmental Services,Contracted Services,07/03/2016,5880,1487.50
Lancaster City Council,30UH,Anglo Espanol Ltd t/a Plastech Windows,Environmental Services,Contracted Services,15/03/2016,5902,729.17
Lancaster City Council,30UH,Anglo Espanol Ltd t/a Plastech Windows,Environmental Services,Contracted Services,16/03/2016,5895,579.17
Lancaster City Council,30UH,Anglo Espanol Ltd t/a Plastech Windows,Environmental Services,Contracted Services,22/03/2016,5917,933.33
Lancaster City Council,30UH,Anglo Espanol Ltd t/a Plastech Windows,Environmental Services,Contracted Services,24/03/2016,5919,579.17
Lancaster City Council,30UH,Anglo Espanol Ltd t/a Plastech Windows,Environmental Services,Contracted Services,24/03/2016,5971,579.17
Lancaster City Council,30UH,Anglo Espanol Ltd t/a Plastech Windows,Environmental Services,Contracted Services,31/03/2016,5972,579.17
Lancaster City Council,30UH,Anthony Grimshaw Associates,Resources,Capital Payments To Contractors,26/03/2016,AJG/JP/55000A,7050.00
Lancaster City Council,30UH,Apex Radio Systems Limited,Health & Housing,Equipment and Tools - General,02/03/2016,192461,792.99
Lancaster City Council,30UH,APSE,Environmental Services,Services - Consultants,20/01/2016,1516/1115,2145.30
Lancaster City Council,30UH,Arcadis Consulting (UK) Ltd,Regeneration and Planning,Services - Consultants,11/02/2016,IUG00026416,15251.00
Lancaster City Council,30UH,A R Hyslop (Lancaster) Ltd,Environmental Services,Capital Payments To Contractors,16/03/2016,IN00041412,3600.00
Lancaster City Council,30UH,A R Hyslop (Lancaster) Ltd,Environmental Services,R & M - Buildings,23/02/2016,IN00041025,755.96
Lancaster City Council,30UH,A R Hyslop (Lancaster) Ltd,Governance,Office Equipment,27/01/2016,IN00040696,939.96
Lancaster City Council,30UH,Arnold Building Services Ltd,Environmental Services,Gas,09/02/2016,INV026960,2055.58
Lancaster City Council,30UH,Arnside/Silverdale AONB Landscape Trust,Regeneration and Planning,Management Plan Projects,09/02/2016,npr000426,2500.00
Lancaster City Council,30UH,Artistes International Management Ltd,Regeneration and Planning,Exhibitions & Events - % Above Guarantee,04/01/2016,1484,1923.96
Lancaster City Council,30UH,Artistes International Management Ltd,Regeneration and Planning,Exhibitions & Events - % Above Guarantee,04/02/2016,1509,1860.87
Lancaster City Council,30UH,Artistes International Management Ltd,Regeneration and Planning,Exhibitions & Events - % Above Guarantee,03/03/2016,1528,2408.01
Lancaster City Council,30UH,Asbestos and Air Management Services Limited,Environmental Services,R & M - Buildings,08/01/2016,008627,589.00
Lancaster City Council,30UH,Asbestos and Air Management Services Limited,Environmental Services,R & M - Buildings,09/02/2016,008668,537.00
Lancaster City Council,30UH,Asbestos and Air Management Services Limited,Environmental Services,R & M - Buildings,07/03/2016,008730,2732.00
Lancaster City Council,30UH,Asbestos and Air Management Services Limited,Environmental Services,Void Maintenance - External,11/02/2016,008677,622.00
Lancaster City Council,30UH,Ascension Funerals & Cliff Small Funeral Service,Health & Housing,Services - Burial Of The Dead,01/02/2016,ASC/1669,1047.00
Lancaster City Council,30UH,Astbury Professional Services,Health & Housing,Services - Medical Fees,07/01/2016,DEC,750.00
Lancaster City Council,30UH,Astbury Professional Services,Health & Housing,Services - Medical Fees,23/03/2016,ASTBURY,750.00
Lancaster City Council,30UH,ATS Euromaster Ltd,Environmental Services,Repair & Mtce Of Vehicles,13/01/2016,A9980112304,2717.38
Lancaster City Council,30UH,ATS Euromaster Ltd,Environmental Services,Repair & Mtce Of Vehicles,13/01/2016,A9980113075,1575.10
Lancaster City Council,30UH,ATS Euromaster Ltd,Environmental Services,Repair & Mtce Of Vehicles,03/03/2016,A9980113791,1368.20
Lancaster City Council,30UH,ATS Euromaster Ltd,Environmental Services,Repair & Mtce Of Vehicles,16/03/2016,A9980114542,503.15
Lancaster City Council,30UH,Back Care Solutions Limited,Health & Housing,Miscellaneous Expenditure,23/02/2016,42731,718.00
Lancaster City Council,30UH,Back Care Solutions Limited,Health & Housing,Miscellaneous Expenditure,23/02/2016,42732,658.50
Lancaster City Council,30UH,Back Care Solutions Limited,Health & Housing,Office Equipment,17/02/2016,42521,2286.50
Lancaster City Council,30UH,Balmer`s Garden Machinery Centre,Environmental Services,Purchase Of Vehicles Etc,31/03/2016,128194,19950.00
Lancaster City Council,30UH,Bannister Hall Nursery Ltd,Environmental Services,Materials - General,09/02/2016,87079,521.50
Lancaster City Council,30UH,Bannister Hall Nursery Ltd,Environmental Services,Materials - General,07/03/2016,87607,2025.00
Lancaster City Council,30UH,Barcham Trees PLC,Environmental Services,Materials - General,29/01/2016,106077,546.00
Lancaster City Council,30UH,Bare Village Business Association,Regeneration and Planning,Services - General,03/02/2016,320,500.00
Lancaster City Council,30UH,Baroque Theatre Company,Regeneration and Planning,Exhibitions & Events - % Above Guarantee,21/01/2016,SA005,662.99
Lancaster City Council,30UH,Bay Communications Group,Environmental Services,Capital Payments To Contractors,18/01/2016,77,1003.60
Lancaster City Council,30UH,Bay Communications Group,Environmental Services,Capital Payments To Contractors,18/01/2016,78,1206.00
Lancaster City Council,30UH,Bay Communications Group,Environmental Services,Contracted Services,31/03/2016,INV-0013,549.00
Lancaster City Council,30UH,Bay Communications Group,Environmental Services,Contract Maintenance,12/01/2016,73,1314.16
Lancaster City Council,30UH,Bay Communications Group,Environmental Services,Contract Maintenance,18/01/2016,70,1314.16
Lancaster City Council,30UH,Bay Communications Group,Environmental Services,Contract Maintenance,02/03/2016,84,1314.16
Lancaster City Council,30UH,Bay Communications Group,Environmental Services,Contract Maintenance,16/03/2016,INV-0005,1314.16
Lancaster City Council,30UH,Bay Communications Group,Environmental Services,Contract Maintenance,31/03/2016,INV-0018,1314.16
Lancaster City Council,30UH,Bell Microsystems Ltd,Resources,Services - Consultants,14/01/2016,SI119647,7735.00
Lancaster City Council,30UH,Bell Microsystems Ltd,Resources,Services - Consultants,14/01/2016,SI120235,6370.00
Lancaster City Council,30UH,Bell Microsystems Ltd,Resources,Services - Consultants,10/02/2016,SI120786,9100.00
Lancaster City Council,30UH,Bell Microsystems Ltd,Resources,Services - Consultants,10/03/2016,SI121419,7280.00
Lancaster City Council,30UH,Berrymans Lace Mawer,Resources,Insurance Excess,09/03/2016,2120104,805.00
Lancaster City Council,30UH,Better with Jam Ltd,Regeneration and Planning,Marketing,31/03/2016,338,1000.00
Lancaster City Council,30UH,Big Fish Internet Ltd,Regeneration and Planning,Services - Consultants,22/03/2016,21526,900.00
Lancaster City Council,30UH,Bill Moore (Lifting Tackle) Ltd,Resources,Capital Payments To Contractors,23/03/2016,82548,640.00
Lancaster City Council,30UH,Bill Moore (Lifting Tackle) Ltd,Resources,Capital Payments To Contractors,26/03/2016,82114BM,4010.00
Lancaster City Council,30UH,Bill Moore (Lifting Tackle) Ltd,Resources,R & M - Buildings,26/03/2016,82061A,1560.00
Lancaster City Council,30UH,Blackpool Council,Regeneration and Planning,Subscriptions,21/01/2016,30103304,755.00
Lancaster City Council,30UH,Bradley Environmental Consultants Limited,Environmental Services,R & M - Buildings,09/03/2016,93119,1210.00
Lancaster City Council,30UH,Bradley Environmental Consultants Limited,Environmental Services,Service Training Budget,05/02/2016,92100,873.53
Lancaster City Council,30UH,Brent Roebuck Road Markings Ltd,Environmental Services,Capital Payments To Contractors,23/03/2016,73447,690.00
Lancaster City Council,30UH,Brent Roebuck Road Markings Ltd,Environmental Services,R & M Sites & Signs,03/02/2016,73434,1676.00
Lancaster City Council,30UH,Brent Roebuck Road Markings Ltd,Environmental Services,R & M Sites & Signs,24/02/2016,73441,1485.00
Lancaster City Council,30UH,Brent Roebuck Road Markings Ltd,Environmental Services,R & M Sites & Signs,02/03/2016,73438,3117.00
Lancaster City Council,30UH,Brent Roebuck Road Markings Ltd,Environmental Services,R & M Sites & Signs,23/03/2016,73446,8825.00
Lancaster City Council,30UH,Brent Roebuck Road Markings Ltd,Environmental Services,R & M Sites & Signs,23/03/2016,73446,1000.00
Lancaster City Council,30UH,Bright-More Promotions Ltd,Regeneration and Planning,Venue - Premises Hire Costs,31/03/2016,npr000457,3528.18
Lancaster City Council,30UH,British Gas Business,Health & Housing,Electricity,11/01/2016,994045134,871.53
Lancaster City Council,30UH,British Gas Business,Health & Housing,Electricity,21/01/2016,965061790,892.03
Lancaster City Council,30UH,British Gas Business,Health & Housing,Electricity,26/01/2016,981057022,967.86
Lancaster City Council,30UH,British Gas Business,Health & Housing,Electricity,02/03/2016,964073745,951.89
Lancaster City Council,30UH,British Gas Business,Health & Housing,Electricity,02/03/2016,973074707,1000.04
Lancaster City Council,30UH,British Gas Business,Health & Housing,Electricity,31/03/2016,991067133,901.37
Lancaster City Council,30UH,British Gas Business,Health & Housing,Electricity,31/03/2016,991067135,880.25
Lancaster City Council,30UH,British Gas Business,Health & Housing,Gas,11/01/2016,983049908,6628.37
Lancaster City Council,30UH,British Gas Business,Health & Housing,Electricity,11/02/2016,982062532,1588.98
Lancaster City Council,30UH,British Gas Business,Health & Housing,Gas,07/01/2016,983049902,1430.98
Lancaster City Council,30UH,British Gas Business,Health & Housing,Gas,07/01/2016,983049903,1426.15
Lancaster City Council,30UH,British Gas Business,Health & Housing,Gas,07/01/2016,983049904,1498.87
Lancaster City Council,30UH,British Gas Business,Health & Housing,Gas,07/01/2016,983049905,1507.97
Lancaster City Council,30UH,British Gas Business,Health & Housing,Gas,07/01/2016,983049906,1696.59
Lancaster City Council,30UH,British Gas Business,Health & Housing,Gas,11/02/2016,982062526,1699.64
Lancaster City Council,30UH,British Gas Business,Health & Housing,Gas,11/02/2016,982062529,1503.81
Lancaster City Council,30UH,British Gas Business,Health & Housing,Gas,11/02/2016,982062530,1562.82
Lancaster City Council,30UH,British Gas Business,Health & Housing,Gas,11/02/2016,982062531,1585.84
Lancaster City Council,30UH,British Gas Business,Health & Housing,Gas,11/02/2016,982062533,1856.37
Lancaster City Council,30UH,British Gas Business,Health & Housing,Gas,10/03/2016,969078367,1140.16
Lancaster City Council,30UH,British Gas Business,Health & Housing,Gas,10/03/2016,969078369,564.52
Lancaster City Council,30UH,British Gas Business,Health & Housing,Gas,10/03/2016,969078370,1794.93
Lancaster City Council,30UH,British Gas Business,Health & Housing,Gas,10/03/2016,969078371,1795.56
Lancaster City Council,30UH,British Gas Business,Health & Housing,Gas,10/03/2016,969078372,1848.83
Lancaster City Council,30UH,British Gas Business,Health & Housing,Gas,10/03/2016,969078373,1941.56
Lancaster City Council,30UH,British Gas Business,Health & Housing,Gas,10/03/2016,969078374,2170.09
Lancaster City Council,30UH,British Gas Business,Environmental Services,Cleaning Materials,04/01/2016,983049910,1768.39
Lancaster City Council,30UH,British Gas Business,Environmental Services,Gas,08/02/2016,982062541,1806.56
Lancaster City Council,30UH,British Gas Business,Environmental Services,Gas,08/02/2016,994038338,2151.27
Lancaster City Council,30UH,British Gas Business,Environmental Services,Gas,08/03/2016,969078378,3703.59
Lancaster City Council,30UH,British Gas Business,Environmental Services,Gas,31/03/2016,969078363,972.93
Lancaster City Council,30UH,British Gas Business,Environmental Services,Gas,31/03/2016,969078368,635.30
Lancaster City Council,30UH,British Gas Business,Environmental Services,Gas,31/03/2016,981080165,1004.64
Lancaster City Council,30UH,British Gas Business,Environmental Services,Gas,31/03/2016,981080184,2581.38
Lancaster City Council,30UH,British Gas Business,Environmental Services,Gas,31/03/2016,982062527,527.72
Lancaster City Council,30UH,British Gas Business,Resources,Gas,08/01/2016,601208326,1491.07
Lancaster City Council,30UH,British Gas Business,Resources,Gas,08/01/2016,601265107,537.06
Lancaster City Council,30UH,British Gas Business,Resources,Gas,08/01/2016,601265205,702.82
Lancaster City Council,30UH,British Gas Business,Resources,Gas,08/01/2016,983049913,1414.94
Lancaster City Council,30UH,British Gas Business,Resources,Gas,05/02/2016,982062503,2079.42
Lancaster City Council,30UH,British Gas Business,Resources,Gas,05/02/2016,982062516,767.77
Lancaster City Council,30UH,British Gas Business,Resources,Gas,10/02/2016,60205390,1338.70
Lancaster City Council,30UH,British Gas Business,Resources,Gas,16/02/2016,982062513,657.67
Lancaster City Council,30UH,British Gas Business,Resources,Gas,25/02/2016,994038192,1488.17
Lancaster City Council,30UH,British Gas Business,Resources,Gas,25/02/2016,994038264,526.15
Lancaster City Council,30UH,British Gas Business,Resources,Gas,09/03/2016,969078351,3128.22
Lancaster City Council,30UH,British Gas Business,Resources,Gas,09/03/2016,969078364,846.28
Lancaster City Council,30UH,British Gas Business,Resources,Gas,10/03/2016,969078361,809.12
Lancaster City Council,30UH,British Gas Business,Resources,Gas,15/03/2016,602053590,3520.66
Lancaster City Council,30UH,British Gas Business,Regeneration and Planning,Gas,04/01/2016,983049898,599.54
Lancaster City Council,30UH,British Gas Business,Regeneration and Planning,Gas,04/02/2016,982062517,627.39
Lancaster City Council,30UH,British Gas Business,Regeneration and Planning,Gas,09/03/2016,969078365,586.91
Lancaster City Council,30UH,British Parking Associatiion,Environmental Services,Subscriptions,27/01/2016,43470,866.00
Lancaster City Council,30UH,British Telecommunications plc,Resources,Telephones,02/03/2016,Q04901,4525.47
Lancaster City Council,30UH,British Telecommunications Plc,Environmental Services,Capital Payments To Contractors,17/03/2016,501495,8552.12
Lancaster City Council,30UH,British Telecommunications Plc,Environmental Services,Capital Payments To Contractors,31/03/2016,500030,7824.28
Lancaster City Council,30UH,BT Business Direct Ltd,Resources,Capital Payments To Contractors,18/02/2016,IN03193695,876.50
Lancaster City Council,30UH,BT Business Direct Ltd,Resources,Equipment and Tools - General,24/02/2016,IN03292316,1303.23
Lancaster City Council,30UH,BT Business Direct Ltd,Resources,Purchase Of Equipment,17/02/2016,IN03271809,1441.17
Lancaster City Council,30UH,BT Business Direct Ltd,Resources,Purchase Of Equipment,18/02/2016,IN03193740,876.50
Lancaster City Council,30UH,BT Business Direct Ltd,Resources,Purchase Of Equipment,18/02/2016,IN03193741,876.50
Lancaster City Council,30UH,BT Business Direct Ltd,Resources,Purchase Of Equipment,24/02/2016,IN03208591,1776.00
Lancaster City Council,30UH,BT Business Direct Ltd,Resources,Service Training Budget,18/02/2016,IN03193718,876.50
Lancaster City Council,30UH,Bucket & Spade Marketing Limited,Regeneration and Planning,Miscellaneous Advertising,04/01/2016,1593,600.00
Lancaster City Council,30UH,Builders Supplies (West Coast) Ltd,Environmental Services,Other Construction Costs,05/02/2016,0005/00057067,660.75
Lancaster City Council,30UH,Cadassist Ltd,Regeneration and Planning,Software Purchase\Licences,24/03/2016,INV-12132/C8Q7,660.00
Lancaster City Council,30UH,Calico Enterprise Ltd,Environmental Services,Apprenticeship Scheme,06/01/2016,SINV/0001564,1369.21
Lancaster City Council,30UH,Calico Enterprise Ltd,Environmental Services,Apprenticeship Scheme,08/02/2016,SINV/00001620,941.16
Lancaster City Council,30UH,Calico Enterprise Ltd,Environmental Services,Apprenticeship Scheme,10/03/2016,SINV/00001683,1216.45
Lancaster City Council,30UH,Calico Enterprise Ltd,Environmental Services,Apprenticeship Scheme,21/03/2016,SINV/00001752,1083.31
Lancaster City Council,30UH,Calico Enterprise Ltd,Environmental Services,Services - General,14/01/2016,SINV/00001596,603.75
Lancaster City Council,30UH,Calico Enterprise Ltd,Environmental Services,Services - General,21/01/2016,SINV/00001586,11605.17
Lancaster City Council,30UH,Calico Enterprise Ltd,Environmental Services,Services - General,08/02/2016,SINV/00001644,11605.17
Lancaster City Council,30UH,Calico Enterprise Ltd,Environmental Services,Services - General,08/02/2016,SINV/00001662,586.25
Lancaster City Council,30UH,Calico Enterprise Ltd,Environmental Services,Services - General,31/03/2016,SINV/00001704,11605.17
Lancaster City Council,30UH,Calico Enterprise Ltd,Environmental Services,Services - General,31/03/2016,SINV/00001806,603.75
Lancaster City Council,30UH,Cambridge Econometrics Ltd,Regeneration and Planning,Services - Consultants,03/02/2016,7156,975.00
Lancaster City Council,30UH,Canal & River Trust,Resources,Rent,09/03/2016,0000060178,900.00
Lancaster City Council,30UH,Capita Treasury Solutions Limited,Resources,Purchase Of Equipment,24/03/2016,6002002377,21556.42
Lancaster City Council,30UH,Capra Design,Regeneration and Planning,Forestry Commission Works,02/03/2016,812,600.00
Lancaster City Council,30UH,Capra Design,Regeneration and Planning,Marketing,30/03/2016,814,650.00
Lancaster City Council,30UH,Capra Design,Regeneration and Planning,Services - Consultants,17/03/2016,815,735.00
Lancaster City Council,30UH,Carillion Construction Ltd,Environmental Services,Services - Consultants,06/01/2016,LANC12,35497.00
Lancaster City Council,30UH,Carillion Construction Ltd,Environmental Services,Services - Consultants,06/01/2016,LANC13,50219.00
Lancaster City Council,30UH,Carillion Construction Ltd,Environmental Services,Services - Consultants,27/01/2016,LANC11,50616.63
Lancaster City Council,30UH,Carillion Construction Ltd,Regeneration and Planning,Services - Consultants,07/03/2016,LANC15,3450.00
Lancaster City Council,30UH,Carlisle Glass Limited,Environmental Services,White Lund Stock,25/01/2016,M 824118,1029.48
Lancaster City Council,30UH,Carlisle Glass Limited,Environmental Services,White Lund Stock,01/03/2016,M 832636,618.45
Lancaster City Council,30UH,Carnforth & District Chamber of Trade,Regeneration and Planning,Services - General,07/01/2016,02/01/16,1500.00
Lancaster City Council,30UH,Catersure Ltd,Resources,Fixtures & Fittings - General,26/03/2016,50272,825.00
Lancaster City Council,30UH,CEMEX UK Materials Ltd,Environmental Services,Materials - General,29/02/2016,3008428626,649.74
Lancaster City Council,30UH,CEMEX UK Materials Ltd,Environmental Services,Materials - General,29/02/2016,3008428627,762.62
Lancaster City Council,30UH,CEMEX UK Materials Ltd,Environmental Services,Materials - General,29/02/2016,3008428628,586.79
Lancaster City Council,30UH,CEMEX UK Materials Ltd,Environmental Services,Materials - General,29/02/2016,3008436370,523.83
Lancaster City Council,30UH,CEMEX UK Materials Ltd,Environmental Services,Materials - General,29/02/2016,3008442113,591.03
Lancaster City Council,30UH,CEMEX UK Materials Ltd,Environmental Services,Materials - General,29/02/2016,3008442456,770.63
Lancaster City Council,30UH,CEMEX UK Materials Ltd,Environmental Services,Playground Improvements,07/03/2016,3008452739,701.01
Lancaster City Council,30UH,Central Power Services Limited,Resources,Disaster Provision,07/01/2016,81508,1105.00
Lancaster City Council,30UH,Central Power Services Limited,Resources,Disaster Provision,07/01/2016,81509,2036.34
Lancaster City Council,30UH,Central Power Services Limited,Resources,Disaster Provision,10/02/2016,51582,1502.64
Lancaster City Council,30UH,Central Power Services Limited,Resources,Infrastructure - Update & Maintenance,10/03/2016,82531,865.00
Lancaster City Council,30UH,C & G Recycling,Governance,Information Management,21/01/2016,1678,607.20
Lancaster City Council,30UH,C & G Recycling,Resources,Miscellaneous Expenditure,15/03/2016,1756,1860.00
Lancaster City Council,30UH,Chartered Institute Of Housing,Health & Housing,Service Training Budget,17/02/2016,0000605378,2350.00
Lancaster City Council,30UH,Chartered Institute Of Housing,Health & Housing,Service Training Budget,23/03/2016,0000607337,530.00
Lancaster City Council,30UH,Chatsworth Gardens SPV Ltd,Regeneration and Planning,Capital Payments To Contractors,27/01/2016,npr000418,212767.00
Lancaster City Council,30UH,C H Brownsord Ltd,Environmental Services,Contracted Services,06/01/2016,507,3600.00
Lancaster City Council,30UH,C H Brownsord Ltd,Environmental Services,Contracted Services,28/01/2016,510,3140.00
Lancaster City Council,30UH,C H Brownsord Ltd,Environmental Services,Contracted Services,08/02/2016,512,646.00
Lancaster City Council,30UH,C H Brownsord Ltd,Environmental Services,Contracted Services,11/03/2016,522,635.00
Lancaster City Council,30UH,C H Brownsord Ltd,Environmental Services,Contracted Services,22/03/2016,527,1100.00
Lancaster City Council,30UH,C H Brownsord Ltd,Environmental Services,Contracted Services,24/03/2016,528,1385.00
Lancaster City Council,30UH,C H Brownsord Ltd,Environmental Services,Contracted Services,31/03/2016,525,3320.00
Lancaster City Council,30UH,C H Brownsord Ltd,Environmental Services,Void Maintenance - External,11/03/2016,523,576.00
Lancaster City Council,30UH,C H Brownsord Ltd,Environmental Services,Void Maintenance - External,11/03/2016,524,697.00
Lancaster City Council,30UH,C H Brownsord Ltd,Environmental Services,Void Maintenance - External,24/03/2016,526,3370.00
Lancaster City Council,30UH,Cheryl Towey (Instructor),Health & Housing,Services - General,02/02/2016,69,542.00
Lancaster City Council,30UH,Cheryl Towey (Instructor),Health & Housing,Services - General,02/03/2016,70,512.00
Lancaster City Council,30UH,Cheshire Turf Machinery Ltd,Environmental Services,Purchase Of Vehicles Etc,31/03/2016,140054,24236.23
Lancaster City Council,30UH,Cheshire Turf Machinery Ltd,Environmental Services,Purchase Of Vehicles Etc,31/03/2016,140571,28360.18
Lancaster City Council,30UH,Cheshire Turf Machinery Ltd,Environmental Services,Repair & Mtce Of Vehicles,12/01/2016,139358,1064.00
Lancaster City Council,30UH,Chris Bowker Limited,Resources,Capital Payments To Contractors,16/03/2016,930298,6127.91
Lancaster City Council,30UH,Chris Bowker Limited,Resources,Capital Payments To Contractors,16/03/2016,930639,1658.98
Lancaster City Council,30UH,Chris Bowker Limited,Resources,Miscellaneous Expenditure,15/03/2016,931401,893.18
Lancaster City Council,30UH,Chris Hill & Son,Resources,R & M - Buildings,12/01/2016,241215,1368.00
Lancaster City Council,30UH,Chris Magson,Environmental Services,Contracted Services,12/01/2016,cpr000575,1087.85
Lancaster City Council,30UH,Chubb Fire & Security Ltd,Environmental Services,Equipment Maintenance,10/02/2016,5493958,12068.51
Lancaster City Council,30UH,Chubb Fire & Security Ltd,Environmental Services,Equipment Maintenance,10/02/2016,5623803,515.00
Lancaster City Council,30UH,Ciceley Commercials Ltd.,Environmental Services,Repair & Mtce Of Vehicles,05/01/2016,15393497,789.95
Lancaster City Council,30UH,Ciceley Commercials Ltd.,Environmental Services,Repair & Mtce Of Vehicles,19/01/2016,15395169,1200.86
Lancaster City Council,30UH,Ciceley Commercials Ltd.,Environmental Services,Repair & Mtce Of Vehicles,27/01/2016,15395772,509.20
Lancaster City Council,30UH,Ciceley Commercials Ltd.,Environmental Services,Repair & Mtce Of Vehicles,23/02/2016,1553546,-789.95
Lancaster City Council,30UH,Ciceley Commercials Ltd.,Environmental Services,Repair & Mtce Of Vehicles,02/03/2016,15399472,719.32
Lancaster City Council,30UH,Ciceley Commercials Ltd.,Environmental Services,Repair & Mtce Of Vehicles,31/03/2016,15401606,681.21
Lancaster City Council,30UH,Cipfa,Resources,Subscriptions,10/03/2016,3116561,1660.00
Lancaster City Council,30UH,CIPFA Business Ltd,Resources,Subscriptions,09/03/2016,3115434,500.00
Lancaster City Council,30UH,CIPFA Business Ltd,Resources,Subscriptions,09/03/2016,3115697,3410.00
Lancaster City Council,30UH,City Electrical Factors Ltd,Environmental Services,Materials - General,19/01/2016,MOR/235431,583.54
Lancaster City Council,30UH,Civica Services Limited,Resources,Software Purchase\Licences,10/03/2016,C/CS080828,6851.10
Lancaster City Council,30UH,Clarkson Electrical Solutions Ltd,Environmental Services,Capital Payments To Contractors,31/03/2016,775,8140.00
Lancaster City Council,30UH,Clarkson Electrical Solutions Ltd,Environmental Services,Capital Payments To Contractors,31/03/2016,776,3903.00
Lancaster City Council,30UH,Cleanall Services Ltd,Environmental Services,R & M - Buildings,23/03/2016,27756,1250.00
Lancaster City Council,30UH,Cleanall Services Ltd,Resources,Other Cleaning,13/01/2016,27150,6318.61
Lancaster City Council,30UH,Cleanall Services Ltd,Resources,Other Cleaning,18/02/2016,27409,6318.61
Lancaster City Council,30UH,Cleanall Services Ltd,Resources,Other Cleaning,10/03/2016,27678,6362.84
Lancaster City Council,30UH,Cobalt Telephone Technologies Ltd,Environmental Services,Car Parking Contracts,13/01/2016,R151231-120,591.00
Lancaster City Council,30UH,Cobalt Telephone Technologies Ltd,Environmental Services,Car Parking Contracts,10/02/2016,R160131-123,681.80
Lancaster City Council,30UH,Cobalt Telephone Technologies Ltd,Environmental Services,Car Parking Contracts,09/03/2016,R160229-123,745.60
Lancaster City Council,30UH,Cockerham Green Energy Ltd,Regeneration and Planning,Planning Application Fees,01/03/2016,npr000433,1155.00
Lancaster City Council,30UH,Contact One Limited,Environmental Services,R & M - Buildings,06/01/2016,EQ957,5687.49
Lancaster City Council,30UH,Contact One Limited,Environmental Services,R & M - Buildings,06/01/2016,EQ967,5687.49
Lancaster City Council,30UH,Contact One Limited,Environmental Services,R & M - Buildings,06/01/2016,EQ967 - app 1,5687.49
Lancaster City Council,30UH,Contact One Limited,Environmental Services,Void Maintenance - External,31/03/2016,EQ967,44410.64
Lancaster City Council,30UH,Contact One Limited,Resources,R & M - Buildings,10/02/2016,3383,10279.00
Lancaster City Council,30UH,Corona Energy,Health & Housing,Gas,19/01/2016,10736849,677.68
Lancaster City Council,30UH,Corona Energy,Health & Housing,Gas,15/02/2016,10819394,805.50
Lancaster City Council,30UH,Corona Energy,Health & Housing,Gas,03/03/2016,10819390,1955.64
Lancaster City Council,30UH,Corona Energy,Health & Housing,Gas,22/03/2016,10925721,806.63
Lancaster City Council,30UH,Corona Energy,Health & Housing,Gas,31/03/2016,10925714,1880.44
Lancaster City Council,30UH,Correct Flow Engineering Ltd,Health & Housing,Chemicals,09/03/2016,3506,802.50
Lancaster City Council,30UH,Correct Flow Engineering Ltd,Health & Housing,Other Fixed Plant,09/03/2016,3556,2939.98
Lancaster City Council,30UH,County Care Services Ltd T/A Carewatch,Health & Housing,Contracted Services,17/02/2016,57179,1612.50
Lancaster City Council,30UH,County Care Services Ltd T/A Carewatch,Health & Housing,Contracted Services,17/02/2016,h700057544,1612.50
Lancaster City Council,30UH,County Oil Group Ltd,Environmental Services,VMU Stock,10/03/2016,661891,1433.64
Lancaster City Council,30UH,Craemer UK Ltd,Environmental Services,Equipment and Tools - General,18/01/2016,3003371,10890.00
Lancaster City Council,30UH,Craemer UK Ltd,Environmental Services,Equipment and Tools - General,18/01/2016,3003390,-6500.00
Lancaster City Council,30UH,Craemer UK Ltd,Environmental Services,Equipment and Tools - General,18/01/2016,80641573,6500.00
Lancaster City Council,30UH,Craemer UK Ltd,Environmental Services,Equipment and Tools - General,03/02/2016,80642624,5610.00
Lancaster City Council,30UH,Craemer UK Ltd,Environmental Services,Equipment and Tools - General,09/02/2016,3003648,5590.00
Lancaster City Council,30UH,Craemer UK Ltd,Environmental Services,Equipment and Tools - General,23/02/2016,3003895,9300.00
Lancaster City Council,30UH,Craemer UK Ltd,Environmental Services,Equipment and Tools - General,17/03/2016,3003646,910.00
Lancaster City Council,30UH,Craemer UK Ltd,Environmental Services,Equipment and Tools - General,31/03/2016,3003903,6200.00
Lancaster City Council,30UH,Craig Jury Plant & Groundworks Limited,Environmental Services,Materials - General,08/02/2016,393,7514.00
Lancaster City Council,30UH,Craig Jury Plant & Groundworks Limited,Environmental Services,Materials - General,01/03/2016,450,2415.00
Lancaster City Council,30UH,Craig Jury Plant & Groundworks Limited,Environmental Services,Materials - General,01/03/2016,451,2950.00
Lancaster City Council,30UH,Craig Jury Plant & Groundworks Limited,Environmental Services,Materials - General,01/03/2016,452,700.00
Lancaster City Council,30UH,Craig Jury Plant & Groundworks Limited,Environmental Services,Materials - General,02/03/2016,437,850.00
Lancaster City Council,30UH,Craig Jury Plant & Groundworks Limited,Environmental Services,Materials - General,16/03/2016,483,6290.00
Lancaster City Council,30UH,Craig Jury Plant & Groundworks Limited,Environmental Services,Materials - General,31/03/2016,512,2600.00
Lancaster City Council,30UH,Craig Jury Plant & Groundworks Limited,Environmental Services,R & M - General,10/02/2016,395,950.00
Lancaster City Council,30UH,Craig Jury Plant & Groundworks Limited,Environmental Services,R & M - General,17/02/2016,426,500.00
Lancaster City Council,30UH,Craig Jury Plant & Groundworks Limited,Environmental Services,R & M Sites & Signs,06/01/2016,347,800.00
Lancaster City Council,30UH,Craig Jury Plant & Groundworks Limited,Environmental Services,R & M Sites & Signs,02/03/2016,472,1200.00
Lancaster City Council,30UH,Craig Jury Plant & Groundworks Limited,Regeneration and Planning,R & M - General,24/03/2016,494,4910.00
Lancaster City Council,30UH,Craig Jury Plant & Groundworks Limited,Regeneration and Planning,R & M - Sea & River / Promenade,03/02/2016,428,2600.00
Lancaster City Council,30UH,Critical Software Limited,Resources,Infrastructure - Update & Maintenance,21/01/2016,7371,3150.00
Lancaster City Council,30UH,Cromwell Tools Limited,Environmental Services,White Lund Stock,11/01/2016,40029942,1036.80
Lancaster City Council,30UH,Cromwell Tools Limited,Environmental Services,White Lund Stock,15/02/2016,40032168,633.75
Lancaster City Council,30UH,Crossling Ltd,Environmental Services,White Lund Stock,04/01/2016,1826983,825.91
Lancaster City Council,30UH,CTM Fire and Security Ltd,Environmental Services,Capital Payments To Contractors,30/03/2016,8409,4689.66
Lancaster City Council,30UH,CTM Fire and Security Ltd,Environmental Services,Capital Payments To Contractors,31/03/2016,8410,4447.84
Lancaster City Council,30UH,Cyclescheme Limited,Resources,Purchase of Cycles,04/02/2016,W305918,543.32
Lancaster City Council,30UH,Cyclescheme Limited,Resources,Purchase of Cycles,25/02/2016,W307287,583.33
Lancaster City Council,30UH,Cyclescheme Limited,Resources,Purchase of Cycles,10/03/2016,W309265,750.00
Lancaster City Council,30UH,Cyclescheme Limited,Resources,Purchase of Cycles,24/03/2016,W310510,748.28
Lancaster City Council,30UH,Cygnia Technologies Ltd,Resources,Infrastructure - Update & Maintenance,14/01/2016,SI006385,2960.00
Lancaster City Council,30UH,Cygnia Technologies Ltd,Resources,Infrastructure - Update & Maintenance,14/01/2016,SI006385,4440.00
Lancaster City Council,30UH,Danfo (UK) Limited,Environmental Services,General Fees & Charges,27/01/2016,0000000807,-4152.12
Lancaster City Council,30UH,Danfo (UK) Limited,Environmental Services,Services - General,27/01/2016,0000003178,21726.84
Lancaster City Council,30UH,Dave Wilson Developments,Health & Housing,Capital Grants,21/01/2016,spr000796,4771.00
Lancaster City Council,30UH,Dave Wilson Developments,Health & Housing,Capital Grants,21/01/2016,spr000798,2815.00
Lancaster City Council,30UH,Dave Wilson Developments,Health & Housing,Capital Grants,10/02/2016,spr000806,3740.20
Lancaster City Council,30UH,Dave Wilson Developments,Health & Housing,Capital Grants,16/03/2016,spr000813,3490.00
Lancaster City Council,30UH,David A. Farrer Limited,Environmental Services,Capital Payments To Contractors,05/01/2016,4160,3855.00
Lancaster City Council,30UH,David A. Farrer Limited,Environmental Services,Capital Payments To Contractors,17/02/2016,4165,2975.00
Lancaster City Council,30UH,David A. Farrer Limited,Environmental Services,Capital Payments To Contractors,31/03/2016,4210,3758.00
Lancaster City Council,30UH,David A. Farrer Limited,Environmental Services,Capital Payments To Contractors,31/03/2016,4211,3295.00
Lancaster City Council,30UH,David Padley,Regeneration and Planning,Management Plan Projects,15/02/2016,42,720.00
Lancaster City Council,30UH,D Barf Plastering & General Building,Environmental Services,Contracted Services,05/01/2016,DBarf 64/16,2568.00
Lancaster City Council,30UH,D Barf Plastering & General Building,Environmental Services,Contracted Services,12/01/2016,DBarf 66/16,568.00
Lancaster City Council,30UH,D Barf Plastering & General Building,Environmental Services,Contracted Services,11/02/2016,74/16,1440.00
Lancaster City Council,30UH,D Barf Plastering & General Building,Environmental Services,Contracted Services,07/03/2016,DBarf 80/16,1850.00
Lancaster City Council,30UH,D Barf Plastering & General Building,Environmental Services,Contracted Services,15/03/2016,DBarf,640.00
Lancaster City Council,30UH,D Barf Plastering & General Building,Environmental Services,Contracted Services,15/03/2016,DBarf/  84/16,760.00
Lancaster City Council,30UH,D Barf Plastering & General Building,Environmental Services,Contracted Services,21/03/2016,DBarf 85/16,755.00
Lancaster City Council,30UH,D Barf Plastering & General Building,Environmental Services,Void Maintenance - External,12/01/2016,DBarf 65/16,980.00
Lancaster City Council,30UH,D Barf Plastering & General Building,Environmental Services,Void Maintenance - External,12/01/2016,DBarf 68/16,650.00
Lancaster City Council,30UH,D Barf Plastering & General Building,Environmental Services,Void Maintenance - External,15/01/2016,DBarf 71/16,548.00
Lancaster City Council,30UH,D Barf Plastering & General Building,Environmental Services,Void Maintenance - External,11/02/2016,72/16,1600.00
Lancaster City Council,30UH,D Barf Plastering & General Building,Environmental Services,Void Maintenance - External,22/02/2016,DBarf 76/16,960.00
Lancaster City Council,30UH,D Barf Plastering & General Building,Environmental Services,Void Maintenance - External,22/02/2016,DBarf 77/16,640.00
Lancaster City Council,30UH,D Barf Plastering & General Building,Environmental Services,Void Maintenance - External,24/02/2016,DBarf 78/16,990.00
Lancaster City Council,30UH,D Barf Plastering & General Building,Environmental Services,Void Maintenance - External,24/02/2016,DBarf 79/16,670.00
Lancaster City Council,30UH,D Barf Plastering & General Building,Environmental Services,Void Maintenance - External,14/03/2016,DBarf 81/16,1497.00
Lancaster City Council,30UH,Deekay Technical Recruitment Ltd,Regeneration and Planning,Capital Payments To Contractors,07/01/2016,00106573,1617.00
Lancaster City Council,30UH,Deekay Technical Recruitment Ltd,Regeneration and Planning,Capital Payments To Contractors,21/01/2016,00106882,1617.00
Lancaster City Council,30UH,Deekay Technical Recruitment Ltd,Regeneration and Planning,Capital Payments To Contractors,11/02/2016,00107189,1650.00
Lancaster City Council,30UH,Deekay Technical Recruitment Ltd,Regeneration and Planning,Capital Payments To Contractors,17/02/2016,00107512,1303.50
Lancaster City Council,30UH,Deekay Technical Recruitment Ltd,Regeneration and Planning,Capital Payments To Contractors,03/03/2016,00107683,1320.00
Lancaster City Council,30UH,Deekay Technical Recruitment Ltd,Regeneration and Planning,Capital Payments To Contractors,17/03/2016,00108147,2376.00
Lancaster City Council,30UH,Deekay Technical Recruitment Ltd,Regeneration and Planning,Capital Payments To Contractors,23/03/2016,00108302,1320.00
Lancaster City Council,30UH,Dell Corporation Ltd,Resources,Purchase Of Equipment,07/01/2016,7402255633,508.27
Lancaster City Council,30UH,Dell Corporation Ltd,Resources,Purchase Of Equipment,09/03/2016,7402269533,6017.80
Lancaster City Council,30UH,Dennis Barnfield Ltd,Environmental Services,Materials - General,31/03/2016,265889,783.04
Lancaster City Council,30UH,Dennis Eagle Ltd,Environmental Services,Repair & Mtce Of Vehicles,02/03/2016,DE10933954,834.48
Lancaster City Council,30UH,Dennis Eagle Ltd,Environmental Services,Repair & Mtce Of Vehicles,07/03/2016,DE10934235,1983.78
Lancaster City Council,30UH,Dennis Eagle Ltd,Environmental Services,Repair & Mtce Of Vehicles,21/03/2016,DE10937979,536.77
Lancaster City Council,30UH,Dennis Eagle Ltd,Environmental Services,Vehicle Licences,31/03/2016,DE10929725,1165.17
Lancaster City Council,30UH,Dennis James Stamper,Health & Housing,HMO License Fees,08/02/2016,spr000804,563.36
Lancaster City Council,30UH,Dickinson & Whitaker Limited,Health & Housing,Capital Grants,15/02/2016,spr000808,3995.00
Lancaster City Council,30UH,DLA Piper UK LLP,Governance,Corporate Training Budget,08/03/2016,54803667,1759.87
Lancaster City Council,30UH,Dorothy Bell Counselling and Psychotherapy,Governance,Services - Medical Fees,09/02/2016,"077, 098-100",525.00
Lancaster City Council,30UH,Duncan Ross Ltd,Environmental Services,Forestry Commission Works,08/02/2016,3349,4224.96
Lancaster City Council,30UH,Duncan Ross Ltd,Environmental Services,Forestry Commission Works,01/03/2016,3358,1800.00
Lancaster City Council,30UH,Earlsmere Limited,Environmental Services,Equipment and Tools - General,13/01/2016,00055255,685.00
Lancaster City Council,30UH,Earlsmere Limited,Environmental Services,Materials - General,17/03/2016,00055462,2165.13
Lancaster City Council,30UH,Earlsmere Limited,Environmental Services,Materials - General,31/03/2016,00055383,2827.49
Lancaster City Council,30UH,Edgeway Physiotherapy Consultancy Ltd,Governance,Services - Consultants,23/03/2016,Nov 14 - Feb16,910.00
Lancaster City Council,30UH,Edmundson Electrical Ltd,Environmental Services,Capital Payments To Contractors,02/02/2016,804387,-3523.98
Lancaster City Council,30UH,Edmundson Electrical Ltd,Environmental Services,Capital Payments To Contractors,12/02/2016,111099,3523.98
Lancaster City Council,30UH,Edmundson Electrical Ltd,Environmental Services,Capital Payments To Contractors,12/02/2016,111103,3523.98
Lancaster City Council,30UH,Edmundson Electrical Ltd,Environmental Services,Capital Payments To Contractors,12/02/2016,113279,3003.41
Lancaster City Council,30UH,Edmundson Electrical Ltd,Environmental Services,Capital Payments To Contractors,12/02/2016,804384,-3523.98
Lancaster City Council,30UH,Edmundson Electrical Ltd,Environmental Services,Capital Payments To Contractors,12/02/2016,804386,-3523.98
Lancaster City Council,30UH,Edmundson Electrical Ltd,Environmental Services,Capital Payments To Contractors,23/02/2016,113276,3076.13
Lancaster City Council,30UH,Edmundson Electrical Ltd,Environmental Services,Capital Payments To Contractors,23/02/2016,113277,3357.91
Lancaster City Council,30UH,Edmundson Electrical Ltd,Environmental Services,Capital Payments To Contractors,23/02/2016,113278,3081.50
Lancaster City Council,30UH,Edmundson Electrical Ltd,Environmental Services,Capital Payments To Contractors,07/03/2016,111102,3523.98
Lancaster City Council,30UH,Edmundson Electrical Ltd,Environmental Services,Capital Payments To Contractors,07/03/2016,804385,-3523.98
Lancaster City Council,30UH,Edmundson Electrical Ltd,Environmental Services,Materials - General,08/01/2016,111652,1081.13
Lancaster City Council,30UH,Edmundson Electrical Ltd,Environmental Services,Materials - General,05/02/2016,105274,971.22
Lancaster City Council,30UH,Edmundson Electrical Ltd,Environmental Services,Materials - General,05/02/2016,105276,957.62
Lancaster City Council,30UH,Edmundson Electrical Ltd,Environmental Services,Materials - General,17/02/2016,130-105275,1176.50
Lancaster City Council,30UH,Edmundson Electrical Ltd,Environmental Services,Materials - General,15/03/2016,114566,560.54
Lancaster City Council,30UH,Edmundson Electrical Ltd,Environmental Services,Other Construction Costs,08/01/2016,110029,3523.98
Lancaster City Council,30UH,Edmundson Electrical Ltd,Environmental Services,Other Construction Costs,08/01/2016,804256,-3523.98
Lancaster City Council,30UH,Edmundson Electrical Ltd,Environmental Services,Other Construction Costs,12/02/2016,111086,3523.98
Lancaster City Council,30UH,Edmundson Electrical Ltd,Environmental Services,White Lund Stock,15/02/2016,130-112432,1287.00
Lancaster City Council,30UH,Edmundson Electrical Ltd,Environmental Services,White Lund Stock,15/02/2016,130-113332,1339.68
Lancaster City Council,30UH,Edmundson Electrical Ltd,Environmental Services,White Lund Stock,02/03/2016,130-113209,3518.72
Lancaster City Council,30UH,Edmundson Electrical Ltd,Environmental Services,White Lund Stock,02/03/2016,130-113262,606.67
Lancaster City Council,30UH,Edmundson Electrical Ltd,Environmental Services,White Lund Stock,02/03/2016,130-114147,783.30
Lancaster City Council,30UH,Edmundson Electrical Ltd,Environmental Services,White Lund Stock,29/03/2016,130-114149,2666.00
Lancaster City Council,30UH,E Lynch & Sons,Environmental Services,Contract Maintenance,22/01/2016,8198,920.40
Lancaster City Council,30UH,E Lynch & Sons,Environmental Services,R & M - Buildings,22/01/2016,8197,533.75
Lancaster City Council,30UH,Emblem Print Products Ltd,Regeneration and Planning,Materials For Resale,17/02/2016,0000070505,518.05
Lancaster City Council,30UH,EMCOR Facilities Services Ltd,Environmental Services,Capital Payments To Contractors,05/01/2016,00402677 RI,43694.19
Lancaster City Council,30UH,EMCOR Facilities Services Ltd,Environmental Services,Capital Payments To Contractors,28/01/2016,00405410 RI,36872.20
Lancaster City Council,30UH,EMCOR Facilities Services Ltd,Environmental Services,Capital Payments To Contractors,01/02/2016,00405577RI,84085.72
Lancaster City Council,30UH,EMCOR Facilities Services Ltd,Environmental Services,Capital Payments To Contractors,11/03/2016,00410479 RI,43304.64
Lancaster City Council,30UH,EMCOR Facilities Services Ltd,Environmental Services,Capital Payments To Contractors,31/03/2016,00412162 RI,6169.83
Lancaster City Council,30UH,EMCOR Facilities Services Ltd,Environmental Services,Capital Payments To Contractors,31/03/2016,00412177 ri,52158.07
Lancaster City Council,30UH,EMCOR Facilities Services Ltd,Environmental Services,Gas Partnership Agreement,05/01/2016,00402675 RI,41360.40
Lancaster City Council,30UH,EMCOR Facilities Services Ltd,Environmental Services,Gas Partnership Agreement,05/01/2016,00402676 RI,13376.31
Lancaster City Council,30UH,EMCOR Facilities Services Ltd,Environmental Services,Gas Partnership Agreement,08/02/2016,00405405 RI,44052.27
Lancaster City Council,30UH,EMCOR Facilities Services Ltd,Environmental Services,Gas Partnership Agreement,08/02/2016,00405406 RI,9708.77
Lancaster City Council,30UH,EMCOR Facilities Services Ltd,Environmental Services,Gas Partnership Agreement,11/03/2016,00409018 RI,42370.58
Lancaster City Council,30UH,EMCOR Facilities Services Ltd,Environmental Services,Gas Partnership Agreement,11/03/2016,00409019 RI,10012.80
Lancaster City Council,30UH,EMCOR Facilities Services Ltd,Environmental Services,Gas Partnership Agreement,31/03/2016,00412180 RI,12046.45
Lancaster City Council,30UH,EMCOR Facilities Services Ltd,Environmental Services,Gas Partnership Agreement,31/03/2016,00412181 RI,37017.61
Lancaster City Council,30UH,Emues UK CIC,Health & Housing,Community Development,16/03/2016,HPO002554,6250.00
Lancaster City Council,30UH,English Landscapes Ltd t/a The Landscape Group,Regeneration and Planning,Capital Payments To Contractors,13/01/2016,NE706217,1650.00
Lancaster City Council,30UH,English Landscapes Ltd t/a The Landscape Group,Regeneration and Planning,Capital Payments To Contractors,24/03/2016,0138,25663.50
Lancaster City Council,30UH,English Landscapes Ltd t/a The Landscape Group,Regeneration and Planning,Capital Payments To Contractors,24/03/2016,0138,42837.84
Lancaster City Council,30UH,Enigma CCTV Ltd,Environmental Services,Contracted Services,20/01/2016,2456,6910.50
Lancaster City Council,30UH,Enigma CCTV Ltd,Environmental Services,Contracted Services,10/02/2016,2472,6910.50
Lancaster City Council,30UH,Enigma CCTV Ltd,Environmental Services,Contracted Services,23/03/2016,2488,6910.50
Lancaster City Council,30UH,En-Tegra Systems Ltd,Resources,R & M - Buildings,21/03/2016,382484,2000.61
Lancaster City Council,30UH,Environment Agency,Environmental Services,Contracted Services,31/03/2016,49803IN,2052.00
Lancaster City Council,30UH,Environment Agency,Regeneration and Planning,Services - General,03/02/2016,npr000421,5625.00
Lancaster City Council,30UH,Envirovent Ltd,Environmental Services,Contracted Services,18/01/2016,0000186170,689.00
Lancaster City Council,30UH,Envirovent Ltd,Environmental Services,Contracted Services,18/01/2016,0000186397,569.00
Lancaster City Council,30UH,Envirovent Ltd,Environmental Services,Contracted Services,01/02/2016,0000187584,678.05
Lancaster City Council,30UH,Envirovent Ltd,Environmental Services,Contracted Services,01/02/2016,0000188117,953.00
Lancaster City Council,30UH,Envirovent Ltd,Environmental Services,Contracted Services,03/02/2016,0000188232,569.00
Lancaster City Council,30UH,Envirovent Ltd,Environmental Services,Contracted Services,05/02/2016,0000188227,569.00
Lancaster City Council,30UH,Envirovent Ltd,Environmental Services,Contracted Services,05/02/2016,0000188228,569.00
Lancaster City Council,30UH,Envirovent Ltd,Environmental Services,Contracted Services,05/02/2016,0000188710,569.00
Lancaster City Council,30UH,Envirovent Ltd,Environmental Services,Contracted Services,23/02/2016,0000187842,569.00
Lancaster City Council,30UH,Envirovent Ltd,Environmental Services,Contracted Services,23/02/2016,0000187864,569.00
Lancaster City Council,30UH,Envirovent Ltd,Environmental Services,Contracted Services,23/02/2016,0000189626,569.00
Lancaster City Council,30UH,Envirovent Ltd,Environmental Services,Contracted Services,23/02/2016,0000189768,887.00
Lancaster City Council,30UH,Envirovent Ltd,Environmental Services,Contracted Services,23/02/2016,0000189798,569.00
Lancaster City Council,30UH,Envirovent Ltd,Environmental Services,Contracted Services,01/03/2016,0000191641,719.00
Lancaster City Council,30UH,Envirovent Ltd,Environmental Services,Contracted Services,07/03/2016,0000190350,689.00
Lancaster City Council,30UH,Envirovent Ltd,Environmental Services,Contracted Services,07/03/2016,0000191649,569.00
Lancaster City Council,30UH,Envirovent Ltd,Environmental Services,Contracted Services,07/03/2016,0000191806,821.00
Lancaster City Council,30UH,Envirovent Ltd,Environmental Services,Contracted Services,15/03/2016,0000193349,920.00
Lancaster City Council,30UH,Envirovent Ltd,Environmental Services,Contracted Services,31/03/2016,0000195469,569.00
Lancaster City Council,30UH,Envirovent Ltd,Environmental Services,Contracted Services,31/03/2016,0000195478,719.00
Lancaster City Council,30UH,Envirovent Ltd,Environmental Services,Contracted Services,31/03/2016,0000195492,569.00
Lancaster City Council,30UH,Envirovent Ltd,Environmental Services,Contracted Services,31/03/2016,0000195832,689.00
Lancaster City Council,30UH,E.ON,Environmental Services,Electricity,11/01/2016,H12641C526,1301.65
Lancaster City Council,30UH,E.ON,Environmental Services,Electricity,08/02/2016,H1284FC8D4,1529.92
Lancaster City Council,30UH,E.ON,Environmental Services,Electricity,08/03/2016,H12A717FAA,1371.10
Lancaster City Council,30UH,E.ON,Environmental Services,Electricity,31/03/2016,H12C9AC607,1778.06
Lancaster City Council,30UH,E.ON,Resources,Electricity,25/02/2016,HECD75ABE,2914.79
Lancaster City Council,30UH,E.ON,Regeneration and Planning,Electricity,03/02/2016,HEC3FC9F6,1217.59
Lancaster City Council,30UH,E.ON,Regeneration and Planning,Electricity,11/02/2016,H1289AA602,835.54
Lancaster City Council,30UH,E.ON,Environmental Services,Electricity,13/01/2016,H126415185,593.91
Lancaster City Council,30UH,E.ON,Environmental Services,Electricity,13/01/2016,H126415891,876.56
Lancaster City Council,30UH,E.ON,Environmental Services,Electricity,10/02/2016,H1284E8E8E,876.56
Lancaster City Council,30UH,E.ON,Environmental Services,Electricity,16/03/2016,H12A77116A,820.00
Lancaster City Council,30UH,Eversheds LLP,Regeneration and Planning,External Professional Fees,31/03/2016,91477027,23273.63
Lancaster City Council,30UH,Express Windows (North West) Ltd.,Health & Housing,Capital Grants,21/01/2016,Inv. 12789,2367.08
Lancaster City Council,30UH,Express Windows (North West) Ltd.,Health & Housing,Home Improvement Works,21/01/2016,Inv. 12629,2860.30
Lancaster City Council,30UH,Express Windows (North West) Ltd.,Health & Housing,Home Improvement Works,21/01/2016,Inv. 12759,1325.83
Lancaster City Council,30UH,Express Windows (North West) Ltd.,Health & Housing,Home Improvement Works,21/01/2016,Inv. 12766,706.67
Lancaster City Council,30UH,Express Windows (North West) Ltd.,Health & Housing,Home Improvement Works,27/01/2016,Inv. 12779,1556.67
Lancaster City Council,30UH,Express Windows (North West) Ltd.,Health & Housing,Home Improvement Works,03/03/2016,Inv. 12837,1945.83
Lancaster City Council,30UH,Farrer & Co LLP,Governance,Professional Fees Etc,17/02/2016,HJG/SJP/PWH,650.00
Lancaster City Council,30UH,Faun Zoeller (UK) Limited,Environmental Services,Repair & Mtce Of Vehicles,28/01/2016,SI73685,2753.39
Lancaster City Council,30UH,Faun Zoeller (UK) Limited,Environmental Services,Repair & Mtce Of Vehicles,11/02/2016,100674,801.00
Lancaster City Council,30UH,Faun Zoeller (UK) Limited,Environmental Services,Repair & Mtce Of Vehicles,16/03/2016,101469,1281.14
Lancaster City Council,30UH,Festival Lights,Regeneration and Planning,Services - General,11/02/2016,73901149678,1680.00
Lancaster City Council,30UH,FGH Security Ltd,Resources,Services - General,11/02/2016,28500,752.70
Lancaster City Council,30UH,Fire Protection Centre Ltd ,Regeneration and Planning,Office Equipment,28/01/2016,113407,579.95
Lancaster City Council,30UH,First Aid Training Plus,Regeneration and Planning,Management Plan Projects,17/03/2016,277,593.00
Lancaster City Council,30UH,F Kitchen (Lancaster) Ltd,Health & Housing,Materials (Minor Adaptations),27/01/2016,Inv. 1262,708.33
Lancaster City Council,30UH,F Kitchen (Lancaster) Ltd,Health & Housing,Materials (Minor Adaptations),24/02/2016,Inv. 1275,600.00
Lancaster City Council,30UH,F Kitchen (Lancaster) Ltd,Health & Housing,Materials (Minor Adaptations),10/03/2016,Inv. 1285,754.17
Lancaster City Council,30UH,F Kitchen (Lancaster) Ltd,Health & Housing,Materials (Minor Adaptations),21/03/2016,Inv. 1289,900.00
Lancaster City Council,30UH,Galtec Solutions Ltd,Resources,Miscellaneous Expenditure,15/03/2016,091068/094368,2693.25
Lancaster City Council,30UH,Galtec Solutions Ltd,Resources,Miscellaneous Expenditure,15/03/2016,091068/094368,3900.00
Lancaster City Council,30UH,Galtec Solutions Ltd,Resources,Purchase Of Equipment,07/01/2016,088172/091005,1098.50
Lancaster City Council,30UH,Galtec Solutions Ltd,Resources,Purchase Of Equipment,07/01/2016,088172/091005,6955.40
Lancaster City Council,30UH,Gap Group Ltd,Environmental Services,Materials - General,13/01/2016,406047895LA,504.00
Lancaster City Council,30UH,Gap Group Ltd,Environmental Services,Materials - General,11/03/2016,406161653WN,508.40
Lancaster City Council,30UH,Gardiner & Theobald LLP,Regeneration and Planning,Capital Payments To Contractors,08/03/2016,SC2/ 22314,5650.00
Lancaster City Council,30UH,Gardiner & Theobald LLP,Regeneration and Planning,Capital Payments To Contractors,29/03/2016,SC2/22614,5650.00
Lancaster City Council,30UH,Gelpack Excelsior Ltd,Environmental Services,White Lund Stock,01/03/2016,SINV-092818,2640.00
Lancaster City Council,30UH,Gelpack Excelsior Ltd,Environmental Services,White Lund Stock,01/03/2016,SINV-092874,3960.00
Lancaster City Council,30UH,Gelpack Excelsior Ltd,Environmental Services,White Lund Stock,29/03/2016,SINV-093515,5190.00
Lancaster City Council,30UH,Gerald Rawcliffe Motor Body Repairs,Resources,Insurance Excess,07/01/2016,26152,816.00
Lancaster City Council,30UH,G & G Signs,Environmental Services,R & M - General,10/02/2016,29931,806.70
Lancaster City Council,30UH,G & G Signs,Environmental Services,R & M - General,10/02/2016,30010,563.40
Lancaster City Council,30UH,Glasdon U.K. Ltd,Environmental Services,Materials - General,09/02/2016,701396,5757.92
Lancaster City Council,30UH,Glasdon U.K. Ltd,Environmental Services,Playground Improvements,31/03/2016,705035,7600.00
Lancaster City Council,30UH,G L Jones Playgrounds Ltd,Environmental Services,White Lund Stock,25/01/2016,101145,1134.00
Lancaster City Council,30UH,Gradko International Ltd,Health & Housing,Air Quality Monitoring Stations,02/02/2016,158764,2411.40
Lancaster City Council,30UH,Graeme Skelcher,Regeneration and Planning,Services - Consultants,04/02/2016,16/08,1040.00
Lancaster City Council,30UH,Green Close Studios,Regeneration and Planning,Grants,16/02/2016,LanCCSLA15-16 210116,900.00
Lancaster City Council,30UH,Greene Training Solutions,Health & Housing,Service Training Budget,29/01/2016,EHL Jan 16,1350.00
Lancaster City Council,30UH,Greene Training Solutions,Health & Housing,Service Training Budget,21/03/2016,March 16,1381.90
Lancaster City Council,30UH,Greenfield Training & Consultancy Ltd,Governance,Corporate Training Budget,28/01/2016,GRN-243/242,1370.00
Lancaster City Council,30UH,Greenfield Training & Consultancy Ltd,Governance,Service Training Budget,09/02/2016,GRN-249,685.00
Lancaster City Council,30UH,Greenham Trading Limited,Environmental Services,White Lund Stock,06/01/2016,11/320344,1744.14
Lancaster City Council,30UH,Greenham Trading Limited,Environmental Services,White Lund Stock,12/01/2016,11/320740,994.94
Lancaster City Council,30UH,Greenham Trading Limited,Environmental Services,White Lund Stock,12/01/2016,11/321542,1589.68
Lancaster City Council,30UH,Greenham Trading Limited,Environmental Services,White Lund Stock,16/02/2016,11/321968,1232.80
Lancaster City Council,30UH,Greenham Trading Limited,Environmental Services,White Lund Stock,16/02/2016,11/327405,1158.01
Lancaster City Council,30UH,Green Sphere Ltd,Health & Housing,Air Quality Management,31/03/2016,15/006,5000.00
Lancaster City Council,30UH,Gullivers Truck Hire Ltd,Environmental Services,Materials - General,06/01/2016,1512/05994,675.00
Lancaster City Council,30UH,Gullivers Truck Hire Ltd,Environmental Services,Materials - General,07/01/2016,1512/09935,675.00
Lancaster City Council,30UH,Gullivers Truck Hire Ltd,Environmental Services,Materials - General,07/01/2016,1512/12185,675.00
Lancaster City Council,30UH,Gullivers Truck Hire Ltd,Environmental Services,Materials - General,07/01/2016,1512/15362,675.00
Lancaster City Council,30UH,Gullivers Truck Hire Ltd,Environmental Services,Materials - General,13/01/2016,1601/20505,675.00
Lancaster City Council,30UH,Gullivers Truck Hire Ltd,Environmental Services,Materials - General,10/02/2016,1601/21779,675.00
Lancaster City Council,30UH,Gullivers Truck Hire Ltd,Environmental Services,Materials - General,10/02/2016,1601/25085,675.00
Lancaster City Council,30UH,Gullivers Truck Hire Ltd,Environmental Services,Materials - General,10/02/2016,1601/30762,675.00
Lancaster City Council,30UH,Gullivers Truck Hire Ltd,Environmental Services,Materials - General,29/02/2016,1602/35626,675.00
Lancaster City Council,30UH,Gullivers Truck Hire Ltd,Environmental Services,Materials - General,29/02/2016,1602/38443,675.00
Lancaster City Council,30UH,Gullivers Truck Hire Ltd,Environmental Services,Materials - General,29/02/2016,1602/40523,675.00
Lancaster City Council,30UH,Gullivers Truck Hire Ltd,Environmental Services,Materials - General,09/03/2016,1602/45920,675.00
Lancaster City Council,30UH,Gullivers Truck Hire Ltd,Environmental Services,Materials - General,16/03/2016,1601/27329,675.00
Lancaster City Council,30UH,Gullivers Truck Hire Ltd,Environmental Services,Materials - General,16/03/2016,1603/47897,675.00
Lancaster City Council,30UH,Gullivers Truck Hire Ltd,Environmental Services,Materials - General,22/03/2016,1603/51203,675.00
Lancaster City Council,30UH,Haffner Orchestra,Regeneration and Planning,Concerts - General,07/03/2016,npr000437,908.20
Lancaster City Council,30UH,Halton Container Services Ltd,Environmental Services,Materials For Resale,09/02/2016,1730,900.00
Lancaster City Council,30UH,Halton Container Services Ltd,Environmental Services,Materials For Resale,23/02/2016,1789,750.00
Lancaster City Council,30UH,Halton Container Services Ltd,Environmental Services,Materials For Resale,23/02/2016,1790,750.00
Lancaster City Council,30UH,Halton Container Services Ltd,Environmental Services,Materials For Resale,23/02/2016,1791,750.00
Lancaster City Council,30UH,Halton Container Services Ltd,Environmental Services,Materials For Resale,23/02/2016,1791,750.00
Lancaster City Council,30UH,Halton Container Services Ltd,Environmental Services,Materials For Resale,24/03/2016,1800,889.50
Lancaster City Council,30UH,Halton Container Services Ltd,Environmental Services,Materials For Resale,24/03/2016,1800,1500.00
Lancaster City Council,30UH,Hartley Hire,Environmental Services,Materials - General,15/01/2016,302499,540.00
Lancaster City Council,30UH,Hartley Hire,Environmental Services,Materials - General,09/03/2016,303328,720.00
Lancaster City Council,30UH,Hayles and Howe Ltd,Resources,Capital Payments To Contractors,26/03/2016,21693,4600.00
Lancaster City Council,30UH,Heather Scott,Health & Housing,Capital Grants,21/01/2016,spr000795,1521.69
Lancaster City Council,30UH,Hemming Group Ltd,Governance,Employee Related Advertising,22/03/2016,PKGI/02271,5600.00
Lancaster City Council,30UH,Henry Alty Limited,Environmental Services,Materials - General,07/03/2016,853162,2188.14
Lancaster City Council,30UH,Henry Alty Limited,Environmental Services,Materials - General,31/03/2016,858285,605.50
Lancaster City Council,30UH,Herbert T. Forrest Ltd,Environmental Services,Capital Payments To Contractors,04/01/2016,101787-8a,19342.47
Lancaster City Council,30UH,Herbert T. Forrest Ltd,Environmental Services,Capital Payments To Contractors,04/01/2016,101787-8c,29593.19
Lancaster City Council,30UH,Herbert T. Forrest Ltd,Environmental Services,Capital Payments To Contractors,08/01/2016,101787-8b,27418.17
Lancaster City Council,30UH,Herbert T. Forrest Ltd,Environmental Services,Capital Payments To Contractors,13/01/2016,101787-9,13709.08
Lancaster City Council,30UH,Herbert T. Forrest Ltd,Environmental Services,Capital Payments To Contractors,09/02/2016,101787-10,14215.61
Lancaster City Council,30UH,Herbert T. Forrest Ltd,Environmental Services,Capital Payments To Contractors,07/03/2016,101787-11,22848.46
Lancaster City Council,30UH,Herbert T. Forrest Ltd,Environmental Services,Capital Payments To Contractors,15/03/2016,101787-12,25222.71
Lancaster City Council,30UH,Herbert T. Forrest Ltd,Environmental Services,Capital Payments To Contractors,17/03/2016,101787-12a,20286.80
Lancaster City Council,30UH,Heysham High School,Health & Housing,Gas,26/01/2016,IN047062,3437.94
Lancaster City Council,30UH,Heysham High School,Health & Housing,Gas,18/03/2016,IN047128,1005.26
Lancaster City Council,30UH,Heysham High School,Health & Housing,Gas,18/03/2016,IN047129,1009.59
Lancaster City Council,30UH,Heysham High School,Health & Housing,Gas,18/03/2016,IN047130,1565.09
Lancaster City Council,30UH,Highwood Consultants Ltd,Environmental Services,Other Construction Costs,12/01/2016,20953,27835.10
Lancaster City Council,30UH,Highwood Consultants Ltd,Environmental Services,Other Construction Costs,10/03/2016,20974,16838.24
Lancaster City Council,30UH,Hodges North West Ltd,Health & Housing,Home Improvement Works,21/01/2016,15/207,2597.50
Lancaster City Council,30UH,Hodges North West Ltd,Health & Housing,Home Improvement Works,27/01/2016,15/275,1800.00
Lancaster City Council,30UH,Hodges North West Ltd,Health & Housing,Home Improvement Works,04/02/2016,15/306,519.50
Lancaster City Council,30UH,Holdex (Plywood) Ltd,Environmental Services,White Lund Stock,12/01/2016,85833,895.00
Lancaster City Council,30UH,Homes and Community Agency,Regeneration and Planning,Capital Grants Income,01/03/2016,npr000432,30000.00
Lancaster City Council,30UH,Honeywell Control Systems Ltd,Resources,R & M - Buildings,13/01/2016,5201026422,2347.89
Lancaster City Council,30UH,Honeywell Control Systems Ltd,Resources,R & M - Buildings,20/01/2016,5201032388,573.75
Lancaster City Council,30UH,Honeywell Control Systems Ltd,Resources,R & M - Buildings,21/01/2016,5201002341A,1487.70
Lancaster City Council,30UH,Honeywell Control Systems Ltd,Resources,R & M - Buildings,25/01/2016,5201011195A,551.99
Lancaster City Council,30UH,Honeywell Control Systems Ltd,Resources,R & M - Buildings,25/01/2016,5201011195B,551.99
Lancaster City Council,30UH,Honeywell Control Systems Ltd,Resources,R & M - Buildings,25/01/2016,5201011195C,551.99
Lancaster City Council,30UH,Honeywell Control Systems Ltd,Resources,R & M - Buildings,25/01/2016,5201011195D,551.99
Lancaster City Council,30UH,Honeywell Control Systems Ltd,Resources,R & M - Buildings,25/01/2016,5201011195E,551.99
Lancaster City Council,30UH,Honeywell Control Systems Ltd,Resources,R & M - Buildings,25/01/2016,5201011195F,551.99
Lancaster City Council,30UH,Honeywell Control Systems Ltd,Resources,R & M - Buildings,25/01/2016,5201011195G,551.99
Lancaster City Council,30UH,Honeywell Control Systems Ltd,Resources,R & M - Buildings,25/01/2016,5201011195H,551.99
Lancaster City Council,30UH,Honeywell Control Systems Ltd,Resources,R & M - Buildings,01/02/2016,5201032780,1137.50
Lancaster City Council,30UH,Horiba UK Limited,Health & Housing,Miscellaneous Expenditure,19/01/2016,90024292,756.00
Lancaster City Council,30UH,Horton Automatics Limited,Resources,Miscellaneous Expenditure,19/02/2016,4064696,3983.85
Lancaster City Council,30UH,Horton Automatics Limited,Resources,R & M - Buildings,19/02/2016,4064534,577.50
Lancaster City Council,30UH,Horton Automatics Limited,Resources,R & M - Buildings,19/02/2016,4064711,652.89
Lancaster City Council,30UH,Horton Automatics Limited,Resources,R & M - Buildings,23/02/2016,4064487,1350.00
Lancaster City Council,30UH,Hotfoot Design Limited,Regeneration and Planning,Printing & Stationery,09/03/2016,H001092,1474.00
Lancaster City Council,30UH,HS Jackson & Son (Fencing) Limited,Environmental Services,Materials - General,08/01/2016,000118755,3532.34
Lancaster City Council,30UH,Hss Hire Group Plc,Environmental Services,Miscellaneous Expenditure,21/03/2016,12931412,914.50
Lancaster City Council,30UH,Hss Hire Group Plc,Environmental Services,Miscellaneous Expenditure,21/03/2016,13019876,731.60
Lancaster City Council,30UH,Hygiene Cleaning Supplies Ltd,Health & Housing,Cleaning Materials,14/03/2016,108529,640.72
Lancaster City Council,30UH,Hygiene Cleaning Supplies Ltd,Environmental Services,White Lund Stock,26/01/2016,108528,650.64
Lancaster City Council,30UH,Hygiene Cleaning Supplies Ltd,Environmental Services,White Lund Stock,26/01/2016,109173,651.02
Lancaster City Council,30UH,Hygiene Cleaning Supplies Ltd,Environmental Services,White Lund Stock,30/03/2016,111786,761.67
Lancaster City Council,30UH,Ian Robert Assitt,Health & Housing,Capital Grants,21/03/2016,spr000820,5245.00
Lancaster City Council,30UH,IDOX Software Limited,Regeneration and Planning,Software Planning-Bldg Cntrl,02/03/2016,104750,41808.74
Lancaster City Council,30UH,Imperial Civil Enforcement Solutions Ltd,Environmental Services,Equipment Maintenance,02/03/2016,31342,1254.50
Lancaster City Council,30UH,Improvement and Development Agency (IDEA),Governance,Corporate Initiatives,22/03/2016,40216142,735.00
Lancaster City Council,30UH,Indespension Ltd,Environmental Services,Repair & Mtce Of Vehicles,01/03/2016,2183304,833.34
Lancaster City Council,30UH,Inform CPI Ltd,Resources,Services - General,21/01/2016,50077,5000.00
Lancaster City Council,30UH,Instarmac Group PLC,Environmental Services,Materials - General,02/03/2016,517948,1503.60
Lancaster City Council,30UH,Instarmac Group PLC,Environmental Services,White Lund Stock,16/02/2016,517947,1070.44
Lancaster City Council,30UH,Instarmac Group PLC,Environmental Services,White Lund Stock,10/03/2016,521763,3408.72
Lancaster City Council,30UH,Instarmac Group PLC,Environmental Services,White Lund Stock,30/03/2016,523338,1694.00
Lancaster City Council,30UH,Institute of Swimming,Health & Housing,Service Training Budget,17/03/2016,iosinv008716,1347.04
Lancaster City Council,30UH,Interconnect Network Systems Limited,Resources,Purchase Of Equipment,10/02/2016,0010337,750.00
Lancaster City Council,30UH,Interconnect Network Systems Limited,Resources,Services - General,10/02/2016,0010340,697.99
Lancaster City Council,30UH,Iron Press Printmaking,Regeneration and Planning,Concerts - General,04/02/2016,npr000423,529.20
Lancaster City Council,30UH,Iron Press Printmaking,Regeneration and Planning,Concerts - General,03/03/2016,npr000436,1181.70
Lancaster City Council,30UH,Iron Press Printmaking,Regeneration and Planning,Concerts - General,31/03/2016,npr000459,1566.00
Lancaster City Council,30UH,ISS Damage Control Ltd T/As ISS Facility Services ,Environmental Services,Contracted Services,23/03/2016,SLINV/78009308,2049.11
Lancaster City Council,30UH,ISS Damage Control Ltd T/As ISS Facility Services ,Environmental Services,R & M - Buildings,23/03/2016,SLINV/78008819,1353.18
Lancaster City Council,30UH,IWA Architects Ltd,Regeneration and Planning,Services - General,08/01/2016,S 1993,1201.50
Lancaster City Council,30UH,IWA Architects Ltd,Regeneration and Planning,Services - General,02/03/2016,S 2009,3098.50
Lancaster City Council,30UH,J and P Gates,Environmental Services,Contracted Services,31/03/2016,20,800.00
Lancaster City Council,30UH,J and P Gates,Environmental Services,Contracted Services,31/03/2016,21,900.00
Lancaster City Council,30UH,J and P Gates,Environmental Services,Contracted Services,31/03/2016,21,900.00
Lancaster City Council,30UH,J C Critchley Ltd,Environmental Services,Capital Payments To Contractors,06/01/2016,0951,5204.00
Lancaster City Council,30UH,J C Critchley Ltd,Environmental Services,Capital Payments To Contractors,05/02/2016,0957,3664.00
Lancaster City Council,30UH,J C Critchley Ltd,Environmental Services,Capital Payments To Contractors,07/03/2016,0957,4704.00
Lancaster City Council,30UH,J C Critchley Ltd,Environmental Services,Capital Payments To Contractors,31/03/2016,0965,4908.00
Lancaster City Council,30UH,J C Critchley Ltd,Environmental Services,Contracted Services,19/01/2016,0954,1480.00
Lancaster City Council,30UH,J C Critchley Ltd,Environmental Services,Contracted Services,01/03/2016,0958,1225.00
Lancaster City Council,30UH,J C Critchley Ltd,Environmental Services,Contracted Services,31/03/2016,0966,2700.00
Lancaster City Council,30UH,J C Critchley Ltd,Environmental Services,Contracted Services,31/03/2016,964,1300.00
Lancaster City Council,30UH,JDG City Rentals,Health & Housing,Homelessness Priority Need Order,04/02/2016,Feb,500.00
Lancaster City Council,30UH,J E Duckett Surfacing Ltd,Environmental Services,Forestry Commission Works,31/03/2016,1646,2015.00
Lancaster City Council,30UH,Jewson Limited,Environmental Services,White Lund Stock,12/01/2016,0333/0124596,849.86
Lancaster City Council,30UH,Jewson Limited,Environmental Services,White Lund Stock,25/01/2016,0333/0125069,692.36
Lancaster City Council,30UH,Jewson Limited,Environmental Services,White Lund Stock,16/02/2016,0333/0125935,796.05
Lancaster City Council,30UH,Jewson Limited,Environmental Services,White Lund Stock,10/03/2016,0333/0126669,666.48
Lancaster City Council,30UH,Jewson Limited,Health & Housing,Grave Excavation,22/03/2016,0333/0127442,846.60
Lancaster City Council,30UH,JF & E Hadwin Ltd,Regeneration and Planning,Purchase Of Vehicles Etc,10/02/2016,00030565,14388.00
Lancaster City Council,30UH,JFH Horticultural Supplies Ltd,Environmental Services,Materials - General,07/03/2016,345969,2760.00
Lancaster City Council,30UH,JFH Horticultural Supplies Ltd,Environmental Services,Materials - General,17/03/2016,345970,3336.00
Lancaster City Council,30UH,J G Howson T/As Capstick Building & Maintenance,Environmental Services,Void Maintenance - External,23/03/2016,13/03/2016,2160.00
Lancaster City Council,30UH,J G Howson T/As Capstick Building & Maintenance,Environmental Services,Void Maintenance - External,31/03/2016,29/03/2016,1700.00
Lancaster City Council,30UH,J & H M Dickson Ltd,Environmental Services,Equipment and Tools - General,31/03/2016,59340,2400.00
Lancaster City Council,30UH,Jill Trafford (Instructor),Health & Housing,Services - General,06/01/2016,12/15,885.00
Lancaster City Council,30UH,Jill Trafford (Instructor),Health & Housing,Services - General,06/01/2016,12/15,500.00
Lancaster City Council,30UH,Jill Trafford (Instructor),Health & Housing,Services - General,03/02/2016,01/16,1275.00
Lancaster City Council,30UH,Jill Trafford (Instructor),Health & Housing,Services - General,02/03/2016,02/16,1775.00
Lancaster City Council,30UH,Jill Trafford (Instructor),Health & Housing,Services - General,23/03/2016,03/16,1200.00
Lancaster City Council,30UH,Jim Meechan Gas Services Ltd,Health & Housing,R & M - Buildings,27/01/2016,16/0081,890.08
Lancaster City Council,30UH,JMP Electrical Services Ltd,Environmental Services,Electrical Inspections,14/01/2016,2993,12444.00
Lancaster City Council,30UH,JMP Electrical Services Ltd,Environmental Services,Electrical Inspections,09/02/2016,3001,12954.00
Lancaster City Council,30UH,JMP Electrical Services Ltd,Environmental Services,Electrical Inspections,03/03/2016,3002,1381.50
Lancaster City Council,30UH,JMP Electrical Services Ltd,Environmental Services,Electrical Inspections,24/03/2016,3023,16218.00
Lancaster City Council,30UH,JMP Electrical Services Ltd,Environmental Services,Electrical Inspections,31/03/2016,3024,6139.00
Lancaster City Council,30UH,John Corless (Lancaster) Limited,Health & Housing,Home Improvement Works,23/02/2016,A 8914,565.37
Lancaster City Council,30UH,Johnston Publishing Ltd,Governance,Miscellaneous Advertising,24/02/2016,3485185,547.80
Lancaster City Council,30UH,Johnston Publishing Ltd,Governance,Miscellaneous Advertising,30/03/2016,3544884,997.44
Lancaster City Council,30UH,Johnston Publishing Ltd,Environmental Services,Miscellaneous Advertising,30/03/2016,3533575,1259.94
Lancaster City Council,30UH,Johnston Publishing Ltd,Regeneration and Planning,Miscellaneous Advertising,21/01/2016,3404018,581.84
Lancaster City Council,30UH,Johnston Publishing Ltd,Regeneration and Planning,Miscellaneous Advertising,21/01/2016,3414281,581.84
Lancaster City Council,30UH,Johnston Publishing Ltd,Regeneration and Planning,Miscellaneous Advertising,17/02/2016,3461736,540.28
Lancaster City Council,30UH,Johnston Publishing Ltd,Regeneration and Planning,Miscellaneous Advertising,09/03/2016,3521095,540.28
Lancaster City Council,30UH,Johnston Sweepers Ltd,Environmental Services,Repair & Mtce Of Vehicles,23/02/2016,65233948,668.66
Lancaster City Council,30UH,Johnston Sweepers Ltd,Environmental Services,VMU Stock,23/02/2016,61347977,742.64
Lancaster City Council,30UH,J.P. Lennard Ltd,Health & Housing,Equipment and Tools - General,19/01/2016,787170,523.96
Lancaster City Council,30UH,JT Builders Ltd,Environmental Services,Capital Payments To Contractors,31/03/2016,INV305,1297.22
Lancaster City Council,30UH,Keepmoat Regeneration Ltd,Resources,Capital Payments To Contractors,04/01/2016,CSCT000731-001,30012.83
Lancaster City Council,30UH,Keepmoat Regeneration Ltd,Resources,Capital Payments To Contractors,04/01/2016,CSCT000731-002,48417.99
Lancaster City Council,30UH,Keepmoat Regeneration Ltd,Resources,Capital Payments To Contractors,06/01/2016,CSCT000706-002,24658.72
Lancaster City Council,30UH,Keepmoat Regeneration Ltd,Resources,Capital Payments To Contractors,13/01/2016,CSCT000692-006,65787.11
Lancaster City Council,30UH,Keepmoat Regeneration Ltd,Resources,Capital Payments To Contractors,13/01/2016,CSCT000732-002,43522.89
Lancaster City Council,30UH,Keepmoat Regeneration Ltd,Resources,Capital Payments To Contractors,19/01/2016,CSCT000693-004,22018.10
Lancaster City Council,30UH,Keepmoat Regeneration Ltd,Resources,Capital Payments To Contractors,29/01/2016,CSCT000728-003,-3934.90
Lancaster City Council,30UH,Keepmoat Regeneration Ltd,Resources,Capital Payments To Contractors,01/02/2016,CSCT000692-007,33823.07
Lancaster City Council,30UH,Keepmoat Regeneration Ltd,Resources,Capital Payments To Contractors,08/02/2016,CSCT000706-003,3330.04
Lancaster City Council,30UH,Keepmoat Regeneration Ltd,Resources,Capital Payments To Contractors,24/02/2016,CSCT000734-001,6941.65
Lancaster City Council,30UH,Keepmoat Regeneration Ltd,Resources,Capital Payments To Contractors,16/03/2016,CSCT000523-005,1819.48
Lancaster City Council,30UH,Keepmoat Regeneration Ltd,Resources,Capital Payments To Contractors,16/03/2016,CSCT000582-006,8309.26
Lancaster City Council,30UH,Keepmoat Regeneration Ltd,Resources,Capital Payments To Contractors,17/03/2016,CSCT000692-008,42820.86
Lancaster City Council,30UH,Keepmoat Regeneration Ltd,Resources,Capital Payments To Contractors,17/03/2016,CSCT000692-009,35564.54
Lancaster City Council,30UH,Keepmoat Regeneration Ltd,Resources,Capital Payments To Contractors,17/03/2016,CSCT000731-003,38486.56
Lancaster City Council,30UH,Keepmoat Regeneration Ltd,Resources,Capital Payments To Contractors,17/03/2016,CSCT000731-004,31050.43
Lancaster City Council,30UH,Keepmoat Regeneration Ltd,Resources,Capital Payments To Contractors,17/03/2016,CSCT000732-003,15804.99
Lancaster City Council,30UH,Keepmoat Regeneration Ltd,Resources,Capital Payments To Contractors,26/03/2016,CSCT000728-004A,68268.01
Lancaster City Council,30UH,Keepmoat Regeneration Ltd,Resources,Capital Payments To Contractors,26/03/2016,CSCT000728-006A,38438.66
Lancaster City Council,30UH,Keepmoat Regeneration Ltd,Resources,Capital Payments To Contractors,26/03/2016,CSCT000729-001A,45795.78
Lancaster City Council,30UH,Keepmoat Regeneration Ltd,Resources,R & M - Buildings,24/03/2016,CSCT000666-002,534.05
Lancaster City Council,30UH,Kelly Kane,Environmental Services,Contracted Services,18/03/2016,cpr000594,750.00
Lancaster City Council,30UH,Kingkraft Limited,Health & Housing,Capital Grants,04/02/2016,spr000803,1600.00
Lancaster City Council,30UH,Kings Chambers,Governance,Professional Fees Etc,17/02/2016,367951,750.00
Lancaster City Council,30UH,Kings Chambers,Regeneration and Planning,Services - Consultants,28/01/2016,368741,1500.00
Lancaster City Council,30UH,KPMG LLP,Resources,Audit Fees,07/01/2016,5501132005,16990.25
Lancaster City Council,30UH,KPMG LLP,Resources,Audit Fees,11/02/2016,5501147392,3000.00
Lancaster City Council,30UH,KPMG LLP,Resources,Audit Fees,03/03/2016,5501152536,10320.00
Lancaster City Council,30UH,KPMG LLP,Resources,Services - Consultants,18/02/2016,5501146738,3000.00
Lancaster City Council,30UH,Kykloud Limited,Environmental Services,Stock Condition/Housing Needs Survey,31/03/2016,INV-1761,750.00
Lancaster City Council,30UH,Kykloud Limited,Environmental Services,Stock Condition/Housing Needs Survey,31/03/2016,INV-1845,750.00
Lancaster City Council,30UH,LABC,Regeneration and Planning,Subscriptions,17/03/2016,10964,2061.36
Lancaster City Council,30UH,Lancashire Constabulary,Environmental Services,Contracted Services,14/01/2016,7500006368,24750.00
Lancaster City Council,30UH,Lancashire Constabulary,Environmental Services,Contracted Services,31/03/2016,7500006714,24750.00
Lancaster City Council,30UH,Lancashire County Council,Governance,Land Charge Fees - L.C.C.,21/01/2016,5200107647,1275.00
Lancaster City Council,30UH,Lancashire County Council,Governance,Land Charge Fees - L.C.C.,24/02/2016,5200111212,1254.00
Lancaster City Council,30UH,Lancashire County Council,Governance,Land Charge Fees - L.C.C.,23/03/2016,5200113258,2209.00
Lancaster City Council,30UH,Lancashire County Council,Regeneration and Planning,Capital Payments To Contractors,17/03/2016,5200113282,606.60
Lancaster City Council,30UH,Lancashire County Council,Regeneration and Planning,Capital Payments To Contractors,31/03/2016,5200112700,3000.00
Lancaster City Council,30UH,Lancashire County Council,Regeneration and Planning,Contracted Services,23/03/2016,5200113547,505000.00
Lancaster City Council,30UH,Lancashire County Council,Regeneration and Planning,Other Capital Expenditure,11/02/2016,5200109730,15000.00
Lancaster City Council,30UH,Lancashire County Council,Environmental Services,County Contribution,10/02/2016,5200108909,1381.66
Lancaster City Council,30UH,Lancashire County Council,Environmental Services,Services - Lancs County Council,10/02/2016,5200108840,4074.45
Lancaster City Council,30UH,Lancashire County Council,Environmental Services,Services - Legal Costs,10/02/2016,5200108840,602.00
Lancaster City Council,30UH,Lancashire County Council,Health & Housing,Capital Grants,06/01/2016,spr000782,1943.80
Lancaster City Council,30UH,Lancashire County Council,Health & Housing,Capital Grants,11/01/2016,spr000787,5384.00
Lancaster City Council,30UH,Lancashire County Council,Health & Housing,Capital Grants,11/01/2016,spr000788,4031.40
Lancaster City Council,30UH,Lancashire County Council,Health & Housing,Capital Grants,11/01/2016,spr000789,4145.00
Lancaster City Council,30UH,Lancashire County Council,Health & Housing,Capital Grants,27/01/2016,spr000800,3003.17
Lancaster City Council,30UH,Lancashire County Council,Health & Housing,Capital Grants,15/02/2016,spr000807,3000.00
Lancaster City Council,30UH,Lancashire County Council,Health & Housing,Capital Grants,16/03/2016,spr000814,1550.28
Lancaster City Council,30UH,Lancashire County Council,Health & Housing,Capital Grants,23/03/2016,spr000822,3789.94
Lancaster City Council,30UH,Lancashire County Council,Health & Housing,Capital Grants,23/03/2016,spr000823,4786.36
Lancaster City Council,30UH,Lancashire County Council,Health & Housing,Capital Grants,23/03/2016,spr000824,636.00
Lancaster City Council,30UH,Lancashire County Council,Resources,Capital Payments To Contractors,19/01/2016,5200085150,5266.82
Lancaster City Council,30UH,Lancashire County Council,Resources,Capital Payments To Contractors,03/02/2016,5200108945,4876.47
Lancaster City Council,30UH,Lancashire County Council,Resources,Capital Payments To Contractors,03/02/2016,5200108972,3314.51
Lancaster City Council,30UH,Lancashire County Council,Resources,Capital Payments To Contractors,04/02/2016,5200108961,2538.21
Lancaster City Council,30UH,Lancashire County Council,Resources,Capital Payments To Contractors,05/02/2016,5200108870,2851.50
Lancaster City Council,30UH,Lancashire County Council,Resources,Capital Payments To Contractors,10/02/2016,5200108992,11705.19
Lancaster City Council,30UH,Lancashire County Council,Resources,Capital Payments To Contractors,11/02/2016,5200108932,1110.90
Lancaster City Council,30UH,Lancashire County Council,Resources,Capital Payments To Contractors,11/02/2016,5200108988,4406.67
Lancaster City Council,30UH,Lancashire County Council,Resources,Capital Payments To Contractors,24/02/2016,5200110576,21489.23
Lancaster City Council,30UH,Lancashire County Council,Resources,Capital Payments To Contractors,01/03/2016,5200111363,814.31
Lancaster City Council,30UH,Lancashire County Council,Resources,Capital Payments To Contractors,16/03/2016,5200111584,8691.79
Lancaster City Council,30UH,Lancashire County Council,Resources,Capital Payments To Contractors,16/03/2016,5200111594,15108.80
Lancaster City Council,30UH,Lancashire County Council,Resources,Capital Payments To Contractors,26/03/2016,5200113982A,12253.54
Lancaster City Council,30UH,Lancashire County Council,Resources,Capital Payments To Contractors,26/03/2016,5200113985A,10007.94
Lancaster City Council,30UH,Lancashire County Council,Resources,R & M - Buildings,06/01/2016,5200104384A,550.00
Lancaster City Council,30UH,Lancashire County Council,Resources,R & M - Buildings,06/01/2016,5200104384F,770.00
Lancaster City Council,30UH,Lancashire County Council,Resources,R & M - Buildings,06/01/2016,5200104384G,880.00
Lancaster City Council,30UH,Lancashire County Council,Resources,R & M - Buildings,06/01/2016,5200104384H,960.00
Lancaster City Council,30UH,Lancashire County Council,Resources,R & M - Buildings,25/02/2016,5200110762H,510.00
Lancaster City Council,30UH,Lancashire County Council,Resources,R & M - Buildings,25/02/2016,5200110762V,1770.00
Lancaster City Council,30UH,Lancashire County Council,Resources,R & M - Buildings,26/03/2016,5200108965,1935.92
Lancaster City Council,30UH,Lancashire County Council,Health & Housing,Rent,12/01/2016,5300001831,600.00
Lancaster City Council,30UH,Lancashire County Council,Health & Housing,Rent,12/01/2016,5300001831,600.00
Lancaster City Council,30UH,Lancashire County Council,Health & Housing,Rent,12/01/2016,5300001831,550.00
Lancaster City Council,30UH,Lancashire County Council,Health & Housing,Rent,12/01/2016,5300001944,600.00
Lancaster City Council,30UH,Lancashire County Council,Health & Housing,Rent,12/01/2016,5300001944,600.00
Lancaster City Council,30UH,Lancashire County Council,Health & Housing,Rent,12/01/2016,5300001944,550.00
Lancaster City Council,30UH,Lancashire County Council,Environmental Services,Capital Payments To Contractors,05/01/2016,5100331520,898.00
Lancaster City Council,30UH,Lancashire County Council,Environmental Services,Capital Payments To Contractors,05/01/2016,5100331522,2189.00
Lancaster City Council,30UH,Lancashire County Council,Environmental Services,Capital Payments To Contractors,05/01/2016,5100331523,3908.50
Lancaster City Council,30UH,Lancashire County Council,Environmental Services,Capital Payments To Contractors,11/02/2016,5100344252,4435.00
Lancaster City Council,30UH,Lancashire County Council,Environmental Services,Landfill Tax,29/01/2016,5200107516,71916.35
Lancaster City Council,30UH,Lancashire County Council,Environmental Services,Landfill Tax,31/03/2016,5200111567,3798.55
Lancaster City Council,30UH,Lancashire County Council,Environmental Services,Landfill Tax,31/03/2016,5200111567,72217.18
Lancaster City Council,30UH,Lancashire County Council,Environmental Services,Materials - General,14/01/2016,5200100300,1077.14
Lancaster City Council,30UH,Lancashire County Council,Environmental Services,Services - Waste Disposal,29/01/2016,5200107516,21286.91
Lancaster City Council,30UH,Lancashire County Council,Environmental Services,Services - Waste Disposal,31/03/2016,5200111567,21376.64
Lancaster City Council,30UH,Lancashire County Council,Environmental Services,Services - Waste Disposal,31/03/2016,5200111567,1123.76
Lancaster City Council,30UH,Lancashire County Council,Regeneration and Planning,Lancs Site & Monuments Record,17/02/2016,5200110012,4000.00
Lancaster City Council,30UH,Lancashire County Council,Environmental Services,Capital Payments To Contractors,24/02/2016,5200110873,2250.00
Lancaster City Council,30UH,Lancashire County Council,Regeneration and Planning,Lancs Site & Monuments Record,21/01/2016,5200107686,3000.00
Lancaster City Council,30UH,Lancashire County Horticultural Training Managemen,Environmental Services,Service Training Budget,31/03/2016,INV249114,1401.37
Lancaster City Council,30UH,Lancashire County Horticultural Training Managemen,Environmental Services,Service Training Budget,31/03/2016,INV249510,1665.00
Lancaster City Council,30UH,Lancashire Daf,Environmental Services,Repair & Mtce Of Vehicles,07/03/2016,1474827,766.04
Lancaster City Council,30UH,Lancashire Daf,Environmental Services,Repair & Mtce Of Vehicles,11/03/2016,1474695,581.41
Lancaster City Council,30UH,Lancashire Wildlife Trust Ltd,Regeneration and Planning,Capital Payments To Contractors,13/01/2016,9441,2400.00
Lancaster City Council,30UH,Lancashire Wildlife Trust Ltd,Regeneration and Planning,Capital Payments To Contractors,24/03/2016,9571,14656.76
Lancaster City Council,30UH,Lancashire Wildlife Trust Ltd,Regeneration and Planning,R & M - Buildings,13/01/2016,9440,2452.89
Lancaster City Council,30UH,Lancashire Wildlife Trust Ltd,Regeneration and Planning,R & M - Buildings,24/03/2016,9572,4414.39
Lancaster City Council,30UH,Lancaster City & District Window Cleaners Ltd,Environmental Services,R & M - Buildings,17/02/2016,LCD/LCC1,3250.00
Lancaster City Council,30UH,Lancaster District Chamber of Commerce Trade & Ind,Regeneration and Planning,Services - Consultants,16/03/2016,16387,3129.49
Lancaster City Council,30UH,Lancaster Management Services T/A LaraNichols ,Regeneration and Planning,Other Cleaning,06/01/2016,13297,690.00
Lancaster City Council,30UH,Lancaster Management Services T/A LaraNichols ,Regeneration and Planning,Other Cleaning,28/01/2016,12981,864.00
Lancaster City Council,30UH,Lancaster Management Services T/A LaraNichols ,Regeneration and Planning,Other Cleaning,04/02/2016,13466,690.00
Lancaster City Council,30UH,Lancaster Management Services T/A LaraNichols ,Regeneration and Planning,Other Cleaning,09/03/2016,13608,690.00
Lancaster City Council,30UH,Lancaster & Morecambe College,Regeneration and Planning,Services - General,30/03/2016,10995,500.00
Lancaster City Council,30UH,Lancaster Music CIC,Regeneration and Planning,Miscellaneous Advertising,03/02/2016,000008,500.00
Lancaster City Council,30UH,Lancaster University Network Services Ltd,Resources,Data Line Rental,13/01/2016,8663773,4100.00
Lancaster City Council,30UH,Lancaster University Network Services Ltd,Resources,Internet Provision,13/01/2016,8663772,1200.00
Lancaster City Council,30UH,Landmark Chambers,Governance,Legal & Court Costs,25/02/2016,142053,600.00
Lancaster City Council,30UH,Lanes Group PLC,Regeneration and Planning,R & M - Buildings,21/01/2016,INV00932606,1345.00
Lancaster City Council,30UH,LCC Engineering Services,Environmental Services,Materials - General,13/01/2016,5200105797,32675.00
Lancaster City Council,30UH,LESS (Lancaster District) CIC,Health & Housing,Home Improvement Works,24/02/2016,Inv. 62,2000.00
Lancaster City Council,30UH,Let`s Play (Everywhere) Ltd,Environmental Services,Playground Improvements,03/02/2016,LPE/SS3044,1100.00
Lancaster City Council,30UH,Let`s Play (Everywhere) Ltd,Environmental Services,Playground Improvements,03/02/2016,LPE/SS3044,900.00
Lancaster City Council,30UH,Let`s Play (Everywhere) Ltd,Environmental Services,Playground Improvements,03/02/2016,LPE/SS3045,26336.00
Lancaster City Council,30UH,Let`s Play (Everywhere) Ltd,Environmental Services,Playground Improvements,03/02/2016,LPE/SS3045,1500.00
Lancaster City Council,30UH,Let`s Play (Everywhere) Ltd,Environmental Services,Playground Improvements,31/03/2016,LPE/SS3157,1950.00
Lancaster City Council,30UH,Let`s Play (Everywhere) Ltd,Environmental Services,Playground Improvements,31/03/2016,LPE/SS3158,7035.00
Lancaster City Council,30UH,Let`s Play (Everywhere) Ltd,Environmental Services,Playground Improvements,31/03/2016,LPE/SS3158,900.00
Lancaster City Council,30UH,LG Futures Limited,Resources,Subscriptions,09/03/2016,6002358,2845.00
Lancaster City Council,30UH,Limehouse Lizzy,Regeneration and Planning,Exhibitions & Events - % Above Guarantee,28/01/2016,PLATFORMMORECAMBE16,1312.13
Lancaster City Council,30UH,Lingwood Security Management Limited,Resources,Security Services,13/01/2016,22704,595.00
Lancaster City Council,30UH,Lingwood Security Management Limited,Resources,Security Services,05/02/2016,22959,542.50
Lancaster City Council,30UH,Lingwood Security Management Limited,Resources,Security Services,10/03/2016,23245,507.50
Lancaster City Council,30UH,Litfest,Regeneration and Planning,Grants,21/01/2016,422,2475.00
Lancaster City Council,30UH,Litfest,Regeneration and Planning,Marketing,09/03/2016,425,1000.00
Lancaster City Council,30UH,L J G Contracting Limited,Health & Housing,Capital Grants,16/03/2016,spr000815,2300.73
Lancaster City Council,30UH,Ludus Dance Company,Regeneration and Planning,Grants,16/02/2016,311,4950.00
Lancaster City Council,30UH,Ludus Leisure Limited,Environmental Services,Materials - General,31/03/2016,2166,10386.00
Lancaster City Council,30UH,LUNS Ltd,Resources,Infrastructure - Update & Maintenance,31/03/2016,420065689,9845.00
Lancaster City Council,30UH,LUNS Ltd,Resources,Telephones,27/01/2016,420064549,611.98
Lancaster City Council,30UH,Magnet Limited,Environmental Services,Materials - General,02/02/2016,158/196342,2433.00
Lancaster City Council,30UH,Magnet Limited,Environmental Services,Materials - General,03/03/2016,158/196676,509.41
Lancaster City Council,30UH,Magnet Limited,Environmental Services,Other Construction Costs,04/01/2016,158/194858,727.93
Lancaster City Council,30UH,Magnet Limited,Environmental Services,Other Construction Costs,04/01/2016,158/194900,579.67
Lancaster City Council,30UH,Magnet Limited,Environmental Services,Other Construction Costs,04/01/2016,158/195010,542.67
Lancaster City Council,30UH,Magnet Limited,Environmental Services,Other Construction Costs,05/01/2016,158/194640,1097.03
Lancaster City Council,30UH,Magnet Limited,Environmental Services,Other Construction Costs,05/01/2016,158/195807,561.76
Lancaster City Council,30UH,Magnet Limited,Environmental Services,Other Construction Costs,01/02/2016,158/194539,506.07
Lancaster City Council,30UH,Magnet Limited,Environmental Services,Other Construction Costs,02/02/2016,158/195573,662.74
Lancaster City Council,30UH,Magnet Limited,Environmental Services,Other Construction Costs,05/02/2016,158/195897,848.53
Lancaster City Council,30UH,Magnet Limited,Environmental Services,Other Construction Costs,05/02/2016,158/195904,638.06
Lancaster City Council,30UH,Magnet Limited,Environmental Services,Other Construction Costs,05/02/2016,158/196103,556.03
Lancaster City Council,30UH,Magnet Limited,Environmental Services,Other Construction Costs,05/02/2016,158/196176,729.97
Lancaster City Council,30UH,Magnet Limited,Environmental Services,Other Construction Costs,05/02/2016,158/196208,618.27
Lancaster City Council,30UH,Magnet Limited,Environmental Services,Other Construction Costs,05/02/2016,158/196269,678.95
Lancaster City Council,30UH,Magnet Limited,Environmental Services,Other Construction Costs,05/02/2016,158/196290,503.58
Lancaster City Council,30UH,Magnet Limited,Environmental Services,Other Construction Costs,02/03/2016,158/196259,518.79
Lancaster City Council,30UH,Magnet Limited,Environmental Services,Other Construction Costs,02/03/2016,158/196436,612.74
Lancaster City Council,30UH,Magnet Limited,Environmental Services,Other Construction Costs,02/03/2016,158/196478,820.95
Lancaster City Council,30UH,Magnet Limited,Environmental Services,Other Construction Costs,07/03/2016,158/196702,625.27
Lancaster City Council,30UH,Magnet Limited,Environmental Services,Other Construction Costs,07/03/2016,158/1967445,626.74
Lancaster City Council,30UH,Magnet Limited,Environmental Services,Other Construction Costs,07/03/2016,158/196822,607.19
Lancaster City Council,30UH,Magnet Limited,Environmental Services,Other Construction Costs,07/03/2016,158/196916,1104.52
Lancaster City Council,30UH,Magnet Limited,Environmental Services,Other Construction Costs,07/03/2016,158/197044,542.02
Lancaster City Council,30UH,Magnet Limited,Environmental Services,Other Construction Costs,07/03/2016,158/197224,570.84
Lancaster City Council,30UH,Magnet Limited,Environmental Services,Other Construction Costs,07/03/2016,158/197281,710.37
Lancaster City Council,30UH,Magnet Limited,Environmental Services,Other Construction Costs,07/03/2016,158/197477,641.17
Lancaster City Council,30UH,Magnet Limited,Environmental Services,Other Construction Costs,07/03/2016,158/197551,607.87
Lancaster City Council,30UH,Magnet Limited,Environmental Services,Other Construction Costs,15/03/2016,158/197809,576.37
Lancaster City Council,30UH,Magnet Limited,Environmental Services,Other Construction Costs,31/03/2016,158/198158,582.07
Lancaster City Council,30UH,Magnet Limited,Environmental Services,Other Construction Costs,31/03/2016,158/198170,499.74
Lancaster City Council,30UH,Magnet Limited,Environmental Services,Other Construction Costs,31/03/2016,158/198193,528.80
Lancaster City Council,30UH,Magnet Limited,Environmental Services,Other Construction Costs,31/03/2016,158/198232,544.32
Lancaster City Council,30UH,Magnet Limited,Environmental Services,Other Construction Costs,31/03/2016,158/198313,623.67
Lancaster City Council,30UH,Magnet Limited,Environmental Services,Other Construction Costs,31/03/2016,158/198357,616.16
Lancaster City Council,30UH,Magnet Limited,Environmental Services,Other Construction Costs,31/03/2016,158/198489,611.10
Lancaster City Council,30UH,Magnet Limited,Environmental Services,Other Construction Costs,31/03/2016,158/198781,680.89
Lancaster City Council,30UH,Magnet Limited,Environmental Services,White Lund Stock,11/01/2016,158/195426,2997.60
Lancaster City Council,30UH,Magnet Limited,Environmental Services,White Lund Stock,30/03/2016,158/197891,2579.40
Lancaster City Council,30UH,Mark A Marroni - Painter&Decorator Property Maint,Environmental Services,R & M - Buildings,14/01/2016,230,620.00
Lancaster City Council,30UH,Mark A Marroni - Painter&Decorator Property Maint,Environmental Services,R & M - Buildings,24/03/2016,291,1190.00
Lancaster City Council,30UH,Marketing Lancashire,Regeneration and Planning,Miscellaneous Advertising,24/03/2016,LMKT502095,5000.00
Lancaster City Council,30UH,Marshalls Mono Ltd,Environmental Services,R & M - General,10/02/2016,105845,704.50
Lancaster City Council,30UH,Marston`s PLC,Regeneration and Planning,Bar Supplies,04/02/2016,96620450,1202.67
Lancaster City Council,30UH,Marston`s PLC,Regeneration and Planning,Bar Supplies,17/03/2016,96741505,1478.94
Lancaster City Council,30UH,Mason Gillibrand Architects,Environmental Services,Capital Payments To Contractors,14/01/2016,52632,574.04
Lancaster City Council,30UH,Mattiussi Environmental Ltd,Environmental Services,Equipment and Tools - General,31/03/2016,4/22,7480.00
Lancaster City Council,30UH,Maxigiene Environmental Services Limited,Environmental Services,Contract Maintenance,12/01/2016,19500C,900.00
Lancaster City Council,30UH,Maxigiene Environmental Services Limited,Environmental Services,Contract Maintenance,10/03/2016,16129C,900.00
Lancaster City Council,30UH,M D Hanafin & Sons Ltd,Environmental Services,Capital Payments To Contractors,27/01/2016,124886,1448.86
Lancaster City Council,30UH,M D Hanafin & Sons Ltd,Environmental Services,Contracted Services,11/01/2016,124580,567.25
Lancaster City Council,30UH,M D Hanafin & Sons Ltd,Environmental Services,Contracted Services,15/01/2016,124879,701.44
Lancaster City Council,30UH,M D Hanafin & Sons Ltd,Environmental Services,Contracted Services,15/01/2016,124887,1799.66
Lancaster City Council,30UH,M D Hanafin & Sons Ltd,Environmental Services,Contracted Services,15/01/2016,124889,1893.11
Lancaster City Council,30UH,M D Hanafin & Sons Ltd,Environmental Services,Contracted Services,15/01/2016,124890,1033.52
Lancaster City Council,30UH,M D Hanafin & Sons Ltd,Environmental Services,Contracted Services,15/01/2016,124891,5237.00
Lancaster City Council,30UH,M D Hanafin & Sons Ltd,Environmental Services,Contracted Services,18/01/2016,124968,1047.20
Lancaster City Council,30UH,M D Hanafin & Sons Ltd,Environmental Services,Contracted Services,09/02/2016,125411,767.40
Lancaster City Council,30UH,M D Hanafin & Sons Ltd,Environmental Services,Contracted Services,09/02/2016,125412,679.50
Lancaster City Council,30UH,M D Hanafin & Sons Ltd,Environmental Services,Contracted Services,23/02/2016,125597,2087.54
Lancaster City Council,30UH,M D Hanafin & Sons Ltd,Environmental Services,Contracted Services,24/02/2016,125444,1980.65
Lancaster City Council,30UH,M D Hanafin & Sons Ltd,Environmental Services,Contracted Services,24/02/2016,125617,520.70
Lancaster City Council,30UH,M D Hanafin & Sons Ltd,Environmental Services,Contracted Services,24/02/2016,125684,2861.14
Lancaster City Council,30UH,M D Hanafin & Sons Ltd,Environmental Services,Contracted Services,01/03/2016,125682,2734.00
Lancaster City Council,30UH,M D Hanafin & Sons Ltd,Environmental Services,Contracted Services,15/03/2016,1216048,2540.65
Lancaster City Council,30UH,M D Hanafin & Sons Ltd,Environmental Services,Contracted Services,15/03/2016,126049,635.54
Lancaster City Council,30UH,M D Hanafin & Sons Ltd,Environmental Services,Contracted Services,31/03/2016,126497,557.93
Lancaster City Council,30UH,M D Hanafin & Sons Ltd,Environmental Services,Contracted Services,31/03/2016,126767,718.96
Lancaster City Council,30UH,M D Hanafin & Sons Ltd,Environmental Services,Other Construction Costs,05/01/2016,124233,510.00
Lancaster City Council,30UH,M D Hanafin & Sons Ltd,Environmental Services,Void Maintenance - External,19/01/2016,125078,1175.30
Lancaster City Council,30UH,Metric Group Ltd,Environmental Services,Equipment and Tools - General,02/03/2016,132505,580.45
Lancaster City Council,30UH,Metric Group Ltd,Environmental Services,Equipment and Tools - General,16/03/2016,132861,1181.85
Lancaster City Council,30UH,Michael Ward t/a Timberwolf,Regeneration and Planning,Grounds Maintenance - Other,17/02/2016,140216,1320.00
Lancaster City Council,30UH,Michael Wilson Joinery and Flat Roofing Specialist,Environmental Services,Capital Payments To Contractors,31/03/2016,051/15,2250.00
Lancaster City Council,30UH,Michael Wilson Joinery and Flat Roofing Specialist,Environmental Services,Contracted Services,27/01/2016,038/15,1100.00
Lancaster City Council,30UH,Michael Wilson Joinery and Flat Roofing Specialist,Environmental Services,Contracted Services,28/01/2016,041/15,1575.00
Lancaster City Council,30UH,Michael Wilson Joinery and Flat Roofing Specialist,Environmental Services,Contracted Services,01/03/2016,044/15,875.00
Lancaster City Council,30UH,Michael Wilson Joinery and Flat Roofing Specialist,Environmental Services,Contracted Services,01/03/2016,044/15,1050.00
Lancaster City Council,30UH,Michael Wilson Joinery and Flat Roofing Specialist,Environmental Services,R & M - Buildings,09/02/2016,040/15,550.00
Lancaster City Council,30UH,Michael Wilson Joinery and Flat Roofing Specialist,Environmental Services,R & M - Buildings,24/03/2016,048/15,1137.50
Lancaster City Council,30UH,Mick Liver Ltd,Environmental Services,Materials For Resale,01/03/2016,79,570.00
Lancaster City Council,30UH,Mick Waumsley Consultant Ltd,Governance,Legal & Court Costs,17/02/2016,MWC0151-16,906.30
Lancaster City Council,30UH,Middleton`s-Electrical Contractors,Health & Housing,R & M - Buildings,21/01/2016,367,886.40
Lancaster City Council,30UH,Middleton`s-Electrical Contractors,Health & Housing,R & M - Buildings,09/03/2016,368,1055.31
Lancaster City Council,30UH,Middleton`s-Electrical Contractors,Health & Housing,R & M - Buildings,09/03/2016,369,738.56
Lancaster City Council,30UH,Middleton`s-Electrical Contractors,Health & Housing,R & M - Buildings,29/03/2016,370,780.00
Lancaster City Council,30UH,Middleton`s-Electrical Contractors,Health & Housing,R & M - Buildings,29/03/2016,371,561.00
Lancaster City Council,30UH,Miss Gabriela Dzierzak,Environmental Services,R & M - Buildings,20/01/2016,cpr000576,748.57
Lancaster City Council,30UH,M. J. Hill  (Joiner),Health & Housing,R & M - Buildings,11/02/2016,92,510.00
Lancaster City Council,30UH,Montagu Evans LLP,Environmental Services,Materials - General,17/03/2016,LCC007,650.00
Lancaster City Council,30UH,Montagu Evans LLP,Environmental Services,Materials - General,31/03/2016,LCC008,650.00
Lancaster City Council,30UH,Morecambe Band,Regeneration and Planning,Venue - Premises Hire Costs,06/01/2016,npr000411,957.82
Lancaster City Council,30UH,Morecambe Band,Regeneration and Planning,Venue - Premises Hire Costs,31/03/2016,npr000456,554.26
Lancaster City Council,30UH,Morecambe Bay Conservation Grazing Co Ltd,Regeneration and Planning,Grounds Maintenance - Other,24/02/2016,LCC.02.16,640.00
Lancaster City Council,30UH,Morecambe FC Community Sports (CIO),Health & Housing,Equipment and Tools - General,21/03/2016,3106,1000.00
Lancaster City Council,30UH,Morecambe Press Ltd,Health & Housing,Printing & Stationery,11/02/2016,6888,1394.00
Lancaster City Council,30UH,Morecambe Town Council,Regeneration and Planning,Grants,26/02/2016,npr000431,25032.37
Lancaster City Council,30UH,Morecambe Town Council,Regeneration and Planning,Services - General,27/01/2016,npr000419,1000.00
Lancaster City Council,30UH,Morecambe Window Company Ltd,Environmental Services,Contracted Services,03/02/2016,MWC67,780.00
Lancaster City Council,30UH,Morecambe Window Company Ltd,Environmental Services,Contracted Services,24/02/2016,MWC71,950.00
Lancaster City Council,30UH,Morecambe Window Company Ltd,Environmental Services,Contracted Services,15/03/2016,MWC77,1333.33
Lancaster City Council,30UH,Morecambe Window Company Ltd,Environmental Services,Materials - General,15/03/2016,MWC72,2233.33
Lancaster City Council,30UH,Morecambe Window Company Ltd,Environmental Services,Materials - General,15/03/2016,MWC72,600.00
Lancaster City Council,30UH,Morecambe Window Company Ltd,Environmental Services,Void Maintenance - External,18/01/2016,MWC61,780.00
Lancaster City Council,30UH,Morecambe Window Company Ltd,Environmental Services,Void Maintenance - External,03/02/2016,MWC67,950.00
Lancaster City Council,30UH,Morecambe Window Company Ltd,Environmental Services,Void Maintenance - External,24/02/2016,MWC71,1250.00
Lancaster City Council,30UH,Morecambe Window Company Ltd,Environmental Services,Void Maintenance - External,24/02/2016,MWC71,790.00
Lancaster City Council,30UH,Morecambe Window Company Ltd,Environmental Services,Void Maintenance - External,24/02/2016,MWC71,890.00
Lancaster City Council,30UH,Morecambe Window Company Ltd,Environmental Services,Void Maintenance - External,31/03/2016,MWC87,658.33
Lancaster City Council,30UH,Morecambe Window Company Ltd,Environmental Services,Void Maintenance - External,31/03/2016,MWC87,538.33
Lancaster City Council,30UH,Morecambe Window Company Ltd,Health & Housing,Home Improvement Works,10/02/2016,MWC70-98 Vale Rd,500.00
Lancaster City Council,30UH,More Music in Morecambe Ltd,Regeneration and Planning,Grants,21/01/2016,3008,2750.00
Lancaster City Council,30UH,Morgan Lambert Limited,Environmental Services,Contracted Services,14/01/2016,24621,600.00
Lancaster City Council,30UH,Morgan Lambert Limited,Environmental Services,Contracted Services,11/03/2016,25094,602.00
Lancaster City Council,30UH,Mrs. Ann Wood,Resources,Professional Fees Etc,15/01/2016,ppr000090,509.00
Lancaster City Council,30UH,Mrs. M. J. Greenwood,Resources,Professional Fees Etc,15/01/2016,ppr000091,509.00
Lancaster City Council,30UH,MSO Productions Ltd,Regeneration and Planning,Exhibitions & Events - % Above Guarantee,03/03/2016,16/03,991.97
Lancaster City Council,30UH,Multi-Trade Restoration Ltd,Resources,Fixtures & Fittings - General,04/01/2016,15/002061,9345.00
Lancaster City Council,30UH,Multi-Trade Restoration Ltd,Resources,Miscellaneous Expenditure,23/03/2016,15/003028,5306.25
Lancaster City Council,30UH,Multi-Trade Restoration Ltd,Resources,Miscellaneous Expenditure,24/03/2016,15/003009,11097.38
Lancaster City Council,30UH,Multi-Trade Restoration Ltd,Resources,Miscellaneous Expenditure,26/03/2016,15/003010,8209.10
Lancaster City Council,30UH,Multi-Trade Restoration Ltd,Resources,Miscellaneous Expenditure,26/03/2016,15/003046,9081.65
Lancaster City Council,30UH,Multi-Trade Restoration Ltd,Resources,R & M - Buildings,04/01/2016,15/002085,17580.00
Lancaster City Council,30UH,Multi-Trade Restoration Ltd,Resources,R & M - Buildings,21/01/2016,15/002053,960.00
Lancaster City Council,30UH,Multi-Trade Restoration Ltd,Resources,R & M - Buildings,21/01/2016,15/003021,5320.00
Lancaster City Council,30UH,Multi-Trade Restoration Ltd,Resources,R & M - Buildings,08/02/2016,15/003019,1358.00
Lancaster City Council,30UH,Multi-Trade Restoration Ltd,Resources,R & M - Buildings,09/02/2016,15/003018,1675.00
Lancaster City Council,30UH,Multi-Trade Restoration Ltd,Resources,R & M - Buildings,10/03/2016,15/003016,3748.00
Lancaster City Council,30UH,Multi-Trade Restoration Ltd,Resources,R & M - Buildings,10/03/2016,15/003017,5230.00
Lancaster City Council,30UH,Munroe K Asset Management Ltd,Environmental Services,Recharge from Lancaster Marketgate,31/03/2016,LCC - 0002,2678.50
Lancaster City Council,30UH,Munroe K Asset Management Ltd,Environmental Services,Recharge from Lancaster Marketgate,31/03/2016,LCC - 0003,10078.91
Lancaster City Council,30UH,National Express,Regeneration and Planning,National Express,04/02/2016,AREXT/00177976,563.95
Lancaster City Council,30UH,Nature Planet ApS,Environmental Services,Materials For Resale,30/03/2016,38773,604.80
Lancaster City Council,30UH,Newclear Drains & Newlook Cleaning Services,Environmental Services,Contracted Services,18/01/2016,9990,520.00
Lancaster City Council,30UH,Newclear Drains & Newlook Cleaning Services,Environmental Services,Services - Waste Disposal,31/03/2016,10144,980.00
Lancaster City Council,30UH,New Progress Housing Association Limited,Health & Housing,Miscellaneous Expenditure,21/01/2016,1200018023,13775.00
Lancaster City Council,30UH,New Progress Housing Association Limited,Health & Housing,Miscellaneous Expenditure,04/02/2016,1200019899,14415.00
Lancaster City Council,30UH,New Progress Housing Association Limited,Health & Housing,Miscellaneous Expenditure,16/03/2016,1200021794,13485.00
Lancaster City Council,30UH,New Progress Housing Association Limited,Health & Housing,Services - General,21/01/2016,1200018022,770.00
Lancaster City Council,30UH,NHS Lanarkshire,Governance,Corporate Training Budget,07/01/2016,L0037860,2542.80
Lancaster City Council,30UH,NHS Lanarkshire,Governance,Services - Medical Fees,09/02/2016,L0038298,2545.60
Lancaster City Council,30UH,NHS Lanarkshire,Governance,Services - Medical Fees,09/02/2016,L0038313,2542.80
Lancaster City Council,30UH,NHS Lanarkshire,Governance,Services - Medical Fees,22/03/2016,L0038720,2542.80
Lancaster City Council,30UH,NHS Lanarkshire,Governance,Services - Medical Fees,23/03/2016,L0038670,1624.80
Lancaster City Council,30UH,NHS Lanarkshire,Governance,Services - Medical Fees,23/03/2016,L0039043,1272.80
Lancaster City Council,30UH,Northern Municipal Spares Ltd t/a ProBrush,Environmental Services,White Lund Stock,10/02/2016,13971,2861.28
Lancaster City Council,30UH,Northern Rail Ltd,Environmental Services,Car Parking Fees,02/03/2016,84035837,528.00
Lancaster City Council,30UH,Northern Rail Ltd,Environmental Services,Car Parking Fees,23/03/2016,84036069,620.80
Lancaster City Council,30UH,Northgate Information Solutions UK Limited,Health & Housing,Software - Anite Task,16/03/2016,91366355,30046.24
Lancaster City Council,30UH,Northgate Information Solutions UK Limited,Resources,Electronic Document Management Workflow,09/03/2016,91366354,26279.32
Lancaster City Council,30UH,Northgate Information Solutions UK Limited,Resources,Electronic Document Management Workflow,24/03/2016,91366721,26568.40
Lancaster City Council,30UH,Northgate Public Services Ltd,Governance,Mobile Telephones,17/03/2016,91365184,10000.00
Lancaster City Council,30UH,Northgate Vehicle Hire Ltd,Environmental Services,Tpt & Plant - Casual Hire,02/02/2016,IW02711789,616.51
Lancaster City Council,30UH,North Lancashire Citizens Advice Bureaux,Governance,Grants,09/02/2016,15/16 Comm Pay Q4,35500.00
Lancaster City Council,30UH,North West Employers Organisation,Governance,Corporate Training Budget,23/02/2016,10599,5997.00
Lancaster City Council,30UH,Novus Property Solutions Ltd,Environmental Services,Capital Payments To Contractors,05/01/2016,15120280,14011.52
Lancaster City Council,30UH,Novus Property Solutions Ltd,Environmental Services,Capital Payments To Contractors,28/01/2016,16010528,28890.16
Lancaster City Council,30UH,Novus Property Solutions Ltd,Environmental Services,Capital Payments To Contractors,23/02/2016,16020438,15733.43
Lancaster City Council,30UH,Novus Property Solutions Ltd,Environmental Services,Contracted Services,27/01/2016,16010479,976.56
Lancaster City Council,30UH,Novus Property Solutions Ltd,Environmental Services,Contracted Services,03/02/2016,16010476,3270.29
Lancaster City Council,30UH,Novus Property Solutions Ltd,Environmental Services,Contracted Services,31/03/2016,16030944,5685.64
Lancaster City Council,30UH,Novus Property Solutions Ltd,Environmental Services,Contracted Services,31/03/2016,16030946,4818.30
Lancaster City Council,30UH,Novus Property Solutions Ltd,Environmental Services,Contracted Services,31/03/2016,16030948,4483.45
Lancaster City Council,30UH,Novus Property Solutions Ltd,Environmental Services,R & M - Buildings,31/03/2016,16030942,25893.29
Lancaster City Council,30UH,npower,Health & Housing,Electricity,11/01/2016,LGUWHRFX,8420.52
Lancaster City Council,30UH,npower,Health & Housing,Electricity,16/02/2016,LGUWSVLF,10956.59
Lancaster City Council,30UH,npower,Health & Housing,Electricity,15/03/2016,lguw45s5,10606.46
Lancaster City Council,30UH,npower,Health & Housing,Electricity,07/01/2016,LGU7WNW,1415.55
Lancaster City Council,30UH,npower,Health & Housing,Electricity,07/01/2016,LGU7WNW,1255.57
Lancaster City Council,30UH,npower,Health & Housing,Electricity,07/01/2016,LGU7WNW,1721.59
Lancaster City Council,30UH,npower,Health & Housing,Electricity,27/01/2016,LGUWPWWC,1740.08
Lancaster City Council,30UH,npower,Health & Housing,Electricity,27/01/2016,LGUWPWWC,1084.60
Lancaster City Council,30UH,npower,Health & Housing,Electricity,27/01/2016,LGUWPWWC,1446.46
Lancaster City Council,30UH,npower,Health & Housing,Electricity,27/01/2016,LGUWPWWC,3850.14
Lancaster City Council,30UH,npower,Health & Housing,Electricity,23/02/2016,lguw2zz5,1120.48
Lancaster City Council,30UH,npower,Health & Housing,Electricity,23/02/2016,lguw2zz5,1364.92
Lancaster City Council,30UH,npower,Health & Housing,Electricity,23/02/2016,lguw2zz5,1079.57
Lancaster City Council,30UH,npower,Health & Housing,Electricity,23/02/2016,lguw2zz5,2102.91
Lancaster City Council,30UH,npower,Health & Housing,Electricity,23/02/2016,lguw2zz5,2696.16
Lancaster City Council,30UH,npower,Health & Housing,Electricity,31/03/2016,LGUXDLLS,1321.51
Lancaster City Council,30UH,npower,Health & Housing,Electricity,31/03/2016,LGUXDLLS,1364.87
Lancaster City Council,30UH,npower,Health & Housing,Electricity,31/03/2016,LGUXDLLS,1864.89
Lancaster City Council,30UH,npower,Environmental Services,Electricity,06/01/2016,LGUV7QNN,1829.60
Lancaster City Council,30UH,npower,Environmental Services,Electricity,13/01/2016,LGUWHRF3,1771.92
Lancaster City Council,30UH,npower,Environmental Services,Electricity,19/01/2016,LGUVJT3L,950.44
Lancaster City Council,30UH,npower,Environmental Services,Electricity,20/01/2016,LGUV7QPP,2045.09
Lancaster City Council,30UH,npower,Environmental Services,Electricity,20/01/2016,LGUWPWWD,2332.05
Lancaster City Council,30UH,npower,Environmental Services,Electricity,03/02/2016,LGUWLZ6J,1659.59
Lancaster City Council,30UH,npower,Environmental Services,Electricity,10/02/2016,LGUVMZHG,1825.66
Lancaster City Council,30UH,npower,Environmental Services,Electricity,24/02/2016,LGUW2K9W,1884.53
Lancaster City Council,30UH,npower,Environmental Services,Electricity,24/02/2016,LGUW2K9Z,517.73
Lancaster City Council,30UH,npower,Environmental Services,Electricity,24/02/2016,LGUWSVLK,1768.99
Lancaster City Council,30UH,npower,Environmental Services,Electricity,16/03/2016,LGUW45S9,1797.88
Lancaster City Council,30UH,npower,Environmental Services,Electricity,30/03/2016,LGUXDDSQ,1757.57
Lancaster City Council,30UH,npower,Environmental Services,Electricity,31/03/2016,LGUW2LCW,2414.04
Lancaster City Council,30UH,npower,Environmental Services,Electricity,31/03/2016,LGUXDDTS,2124.76
Lancaster City Council,30UH,npower,Resources,Electricity,12/01/2016,LGUWHRF4,2734.93
Lancaster City Council,30UH,npower,Resources,Electricity,15/01/2016,LGUWHRF2,917.25
Lancaster City Council,30UH,npower,Resources,Electricity,15/01/2016,LGUWHRFZ,2722.57
Lancaster City Council,30UH,npower,Resources,Electricity,21/01/2016,LGUWLZ6G,1330.57
Lancaster City Council,30UH,npower,Resources,Electricity,22/01/2016,LGUWLZ6L,1294.99
Lancaster City Council,30UH,npower,Resources,Electricity,25/01/2016,LGUWLZ8T,1545.56
Lancaster City Council,30UH,npower,Resources,Electricity,09/02/2016,LGUWLZ6H,1176.40
Lancaster City Council,30UH,npower,Resources,Electricity,10/02/2016,LGUWSVLH,3155.33
Lancaster City Council,30UH,npower,Resources,Electricity,10/02/2016,LGUWSVLJ,1392.86
Lancaster City Council,30UH,npower,Resources,Electricity,19/02/2016,LGUW2LC3,1691.16
Lancaster City Council,30UH,npower,Resources,Electricity,26/02/2016,LGUW2K9Y,1541.76
Lancaster City Council,30UH,npower,Resources,Electricity,11/03/2016,LGUW2LC4,966.54
Lancaster City Council,30UH,npower,Resources,Electricity,15/03/2016,LGUW45S7,3150.42
Lancaster City Council,30UH,npower,Resources,Electricity,15/03/2016,LGUW45S8,1237.63
Lancaster City Council,30UH,npower,Resources,Electricity,15/03/2016,LGUW45TB,2621.64
Lancaster City Council,30UH,npower,Resources,Electricity,18/03/2016,LGUXDDTW,1667.30
Lancaster City Council,30UH,npower,Resources,Gas,10/02/2016,LGUWSVLL,2913.75
Lancaster City Council,30UH,npower,Regeneration and Planning,Electricity,04/02/2016,LGUWLZ6K,629.61
Lancaster City Council,30UH,npower,Regeneration and Planning,Electricity,04/02/2016,LGUWLZ6K,1888.84
Lancaster City Council,30UH,NPS North West Ltd,Regeneration and Planning,Services - Consultants,13/01/2016,03-000588,1000.00
Lancaster City Council,30UH,NSL Limited,Environmental Services,Cash Collection Expenses,21/01/2016,035969,2169.41
Lancaster City Council,30UH,NSL Limited,Environmental Services,Cash Collection Expenses,24/02/2016,036494,1855.63
Lancaster City Council,30UH,NSL Limited,Environmental Services,Cash Collection Expenses,16/03/2016,037019,2136.95
Lancaster City Council,30UH,NSL Limited,Environmental Services,Contracted Services,21/01/2016,035969,4931.41
Lancaster City Council,30UH,NSL Limited,Environmental Services,Contracted Services,24/02/2016,036494,5117.85
Lancaster City Council,30UH,NSL Limited,Environmental Services,Contracted Services,16/03/2016,037019,4869.00
Lancaster City Council,30UH,OC Cleaning Limited,Environmental Services,Window Cleaning,29/01/2016,7165,532.40
Lancaster City Council,30UH,OC Cleaning Limited,Environmental Services,Window Cleaning,07/03/2016,7344,516.65
Lancaster City Council,30UH,OC Cleaning Limited,Environmental Services,Window Cleaning,31/03/2016,7506,516.65
Lancaster City Council,30UH,OCS Group UK Limited t/a Cannon Hygiene,Health & Housing,Other Cleaning,12/01/2016,cn19155869,1106.16
Lancaster City Council,30UH,OCS Group UK Limited t/a Cannon Hygiene,Environmental Services,Services - Medical Fees,01/01/2016,CN19141833,529.21
Lancaster City Council,30UH,OCS Group UK Limited t/a Cannon Hygiene,Environmental Services,Services - Medical Fees,21/01/2016,CN19163096,674.24
Lancaster City Council,30UH,OCS Group UK Limited t/a Cannon Hygiene,Environmental Services,Services - Medical Fees,07/03/2016,CN19183762,574.34
Lancaster City Council,30UH,Ofcom,Resources,Radio Equipment,27/01/2016,77891058,600.00
Lancaster City Council,30UH,Oracle Corporation UK Limited,Resources,Software - Anite Task,14/01/2016,1500876,665.17
Lancaster City Council,30UH,Oracle Corporation UK Limited,Resources,Software - Anite Task,14/01/2016,1507822,1145.72
Lancaster City Council,30UH,Orbis Protect Ltd,Resources,Alarm Systems,12/01/2016,R0527082,640.64
Lancaster City Council,30UH,Orbis Protect Ltd,Resources,Alarm Systems,10/02/2016,R0528325,640.64
Lancaster City Council,30UH,Orbis Protect Ltd,Regeneration and Planning,Security Services,03/02/2016,R0526041M,516.27
Lancaster City Council,30UH,Orbis Protect Ltd,Regeneration and Planning,Security Services,03/02/2016,R0526611M,533.57
Lancaster City Council,30UH,Ordnance Survey,Resources,Ordnance Survey Fee,10/03/2016,92200930,5059.70
Lancaster City Council,30UH,Orion Security Print Ltd,Environmental Services,Printing & Stationery,24/02/2016,27814,1170.00
Lancaster City Council,30UH,Orona Limited,Resources,R & M - Buildings,13/01/2016,15/01/008160,1242.84
Lancaster City Council,30UH,Orona Limited,Resources,R & M - Buildings,13/01/2016,15/11/000876,-727.93
Lancaster City Council,30UH,Osborne Richardson,Health & Housing,Services - Other Analysts,24/03/2016,192222,7452.48
Lancaster City Council,30UH,Otis Ltd.,Environmental Services,Capital Payments To Contractors,28/01/2016,KS869148254,17288.70
Lancaster City Council,30UH,Otis Ltd.,Environmental Services,Capital Payments To Contractors,10/03/2016,KS869151178,17288.70
Lancaster City Council,30UH,Otis Ltd.,Environmental Services,Capital Payments To Contractors,10/03/2016,KS869152223,17864.99
Lancaster City Council,30UH,Otis Ltd.,Environmental Services,Contract Maintenance,05/01/2016,01201073,2527.73
Lancaster City Council,30UH,Otis Ltd.,Environmental Services,Contract Maintenance,12/01/2016,01198873,2072.55
Lancaster City Council,30UH,Otis Ltd.,Environmental Services,Contract Maintenance,10/03/2016,01208145,1193.80
Lancaster City Council,30UH,Otis Ltd.,Resources,Miscellaneous Expenditure,01/03/2016,RTS 10737647,509.00
Lancaster City Council,30UH,Otis Ltd.,Resources,Miscellaneous Expenditure,15/03/2016,RTS 10756791,3510.00
Lancaster City Council,30UH,Overton (UK) Limited,Environmental Services,R & M - Sea & River / Promenade,10/03/2016,9919,5158.17
Lancaster City Council,30UH,Parksafe (Systems) Ltd,Environmental Services,Parksafe,20/01/2016,2347,21198.50
Lancaster City Council,30UH,Parksafe (Systems) Ltd,Environmental Services,Parksafe,09/03/2016,2385,16722.40
Lancaster City Council,30UH,Parksafe (Systems) Ltd,Environmental Services,Parksafe,30/03/2016,2401,17215.20
Lancaster City Council,30UH,PATROL,Environmental Services,Services - Legal Costs,20/01/2016,6475,546.40
Lancaster City Council,30UH,Patronbase (UK) Partners Ltd,Regeneration and Planning,Internet Provision,24/03/2016,INV-1004,500.00
Lancaster City Council,30UH,Peacock Design,Environmental Services,Materials - General,10/03/2016,306/storey gardens,2100.00
Lancaster City Council,30UH,Pearl Scan Solutions Ltd,Regeneration and Planning,Microfilming,06/01/2016,31079,4222.62
Lancaster City Council,30UH,Pearl Scan Solutions Ltd,Regeneration and Planning,Microfilming,09/03/2016,31271,2177.67
Lancaster City Council,30UH,Pennine Flooring Supplies Ltd,Environmental Services,White Lund Stock,23/02/2016,INV614971,1491.91
Lancaster City Council,30UH,Pentland Plants,Environmental Services,Materials - General,11/03/2016,66149,1449.85
Lancaster City Council,30UH,Pentland Plants,Environmental Services,Materials - General,21/03/2016,65999,942.20
Lancaster City Council,30UH,Performing Right Society Ltd,Regeneration and Planning,Performing Rights Fees,17/03/2016,4688979,951.16
Lancaster City Council,30UH,Performing Right Society Ltd,Regeneration and Planning,Performing Rights Fees,17/03/2016,4688980,915.64
Lancaster City Council,30UH,Performing Right Society Ltd,Regeneration and Planning,Performing Rights Fees,17/03/2016,4779793,970.68
Lancaster City Council,30UH,"Peter Atkin, T/A Pete`s Handyman Services",Health & Housing,Capital Grants,21/01/2016,spr000797,2923.65
Lancaster City Council,30UH,P G Whiteside,Environmental Services,Materials - General,09/02/2016,1970,523.00
Lancaster City Council,30UH,Phillip Thomson t/a Mirage Conservatories,Health & Housing,Home Improvement Works,03/02/2016,7 Pennine View,1296.00
Lancaster City Council,30UH,Phillip Thomson t/a Mirage Conservatories,Health & Housing,Home Improvement Works,10/02/2016,195 Willow Lane,1014.80
Lancaster City Council,30UH,Phoenix Software Ltd,Resources,Software Purchase\Licences,15/03/2016,OP/1771329,3138.90
Lancaster City Council,30UH,Phoenix Software Ltd,Resources,Software Purchase\Licences,15/03/2016,OP/1771329,1846.84
Lancaster City Council,30UH,Phoenix Software Ltd,Resources,Software Purchase\Licences,15/03/2016,OP/1771329,2182.50
Lancaster City Council,30UH,Phoenix Software Ltd,Resources,Software Purchase\Licences,15/03/2016,OP/1771329,20696.50
Lancaster City Council,30UH,Phoenix Software Ltd,Resources,Software Purchase\Licences,15/03/2016,OP/1771329,3089.80
Lancaster City Council,30UH,Phoenix Software Ltd,Resources,Software Purchase\Licences,15/03/2016,OP/1771329,521.40
Lancaster City Council,30UH,Phoenix Software Ltd,Resources,Software Purchase\Licences,15/03/2016,OP/1771329,29598.19
Lancaster City Council,30UH,Phoenix Software Ltd,Resources,Software Purchase\Licences,15/03/2016,OP/1771329,598.51
Lancaster City Council,30UH,Phoenix Software Ltd,Resources,Software Purchase\Licences,15/03/2016,OP/1771329,1296.29
Lancaster City Council,30UH,Phoenix Software Ltd,Resources,Software Purchase\Licences,15/03/2016,OP/1771329,924.50
Lancaster City Council,30UH,Phoenix Software Ltd,Resources,Software Purchase\Licences,15/03/2016,OP/1771329,11125.82
Lancaster City Council,30UH,Phoenix Software Ltd,Resources,Software Purchase\Licences,15/03/2016,OP/1771329,4032.00
Lancaster City Council,30UH,Phoenix Software Ltd,Resources,Software Purchase\Licences,16/03/2016,OP/1771260,27268.11
Lancaster City Council,30UH,Phoenix Software Ltd,Resources,Software Purchase\Licences,16/03/2016,OP/1771260,31281.60
Lancaster City Council,30UH,Piccadilly Garden Ltd.,Environmental Services,Contracted Services,15/01/2016,2597,918.42
Lancaster City Council,30UH,Piccadilly Garden Ltd.,Environmental Services,Contracted Services,11/03/2016,2615,789.78
Lancaster City Council,30UH,Piccadilly Garden Ltd.,Environmental Services,Contracted Services,11/03/2016,2630,918.42
Lancaster City Council,30UH,Piccadilly Garden Ltd.,Environmental Services,Contracted Services,31/03/2016,2647,918.42
Lancaster City Council,30UH,Pinington Limited,Resources,R & M - Buildings,23/03/2016,IN314,3749.26
Lancaster City Council,30UH,Place Marque Limited,Regeneration and Planning,Services - General,20/01/2016,16.06,1487.20
Lancaster City Council,30UH,Play and Leisure Ltd,Environmental Services,Playground Improvements,11/03/2016,13485/PLH.2995,7348.20
Lancaster City Council,30UH,Play and Leisure Ltd,Environmental Services,Playground Improvements,31/03/2016,13497/PLH.3040,899.10
Lancaster City Council,30UH,Play and Leisure Ltd,Environmental Services,Playground Improvements,31/03/2016,13497/PLH.3040,2792.70
Lancaster City Council,30UH,Play and Leisure Ltd,Environmental Services,Playground Improvements,31/03/2016,13497/PLH.3040,1730.70
Lancaster City Council,30UH,Playdale Playgrounds Ltd,Environmental Services,Materials - General,11/03/2016,0000021453,590.04
Lancaster City Council,30UH,PlaySmart UK Ltd,Environmental Services,Materials - General,15/01/2016,04018PS,597.00
Lancaster City Council,30UH,P & L Barton Ltd,Regeneration and Planning,R & M - Sea & River / Promenade,21/01/2016,7402,3725.88
Lancaster City Council,30UH,Plumbase Ltd,Environmental Services,Other Construction Costs,05/02/2016,0177/01125058,4584.20
Lancaster City Council,30UH,Plumbase Ltd,Environmental Services,Other Construction Costs,24/02/2016,0177/01125202,859.60
Lancaster City Council,30UH,Plumbase Ltd,Environmental Services,White Lund Stock,04/01/2016,0177/01123859,2794.26
Lancaster City Council,30UH,Plumbase Ltd,Environmental Services,White Lund Stock,27/01/2016,0177/01124123,500.62
Lancaster City Council,30UH,Plumbase Ltd,Environmental Services,White Lund Stock,27/01/2016,0177/01124467,859.60
Lancaster City Council,30UH,Plumbase Ltd,Environmental Services,White Lund Stock,27/01/2016,0177/01124706,1607.93
Lancaster City Council,30UH,Plumbase Ltd,Environmental Services,White Lund Stock,16/02/2016,0177/01125581,2304.56
Lancaster City Council,30UH,Polystar Plastics (Holdings) Ltd,Regeneration and Planning,Rent,03/03/2016,200,6200.00
Lancaster City Council,30UH,P O`Mahoney (Groundworks) Limited,Environmental Services,Capital Payments To Contractors,31/03/2016,252,1680.00
Lancaster City Council,30UH,Power Trading Limited T/A Think Bathrooms,Health & Housing,Capital Grants,06/01/2016,spr000783,2709.59
Lancaster City Council,30UH,Power Trading Limited T/A Think Bathrooms,Health & Housing,Capital Grants,27/01/2016,spr000799,1960.76
Lancaster City Council,30UH,Power Trading Limited T/A Think Bathrooms,Health & Housing,Capital Grants,04/02/2016,spr000802,2796.30
Lancaster City Council,30UH,Power Trading Limited T/A Think Bathrooms,Health & Housing,Capital Grants,17/03/2016,spr000818,3298.15
Lancaster City Council,30UH,Power Trading Limited T/A Think Bathrooms,Health & Housing,Capital Grants,21/03/2016,spr000821,2432.44
Lancaster City Council,30UH,PR Chauffeuring Services,Governance,Central Transport - General,12/01/2016,12012016,1120.00
Lancaster City Council,30UH,PR Chauffeuring Services,Governance,Central Transport - General,08/03/2016,PR01,1200.00
Lancaster City Council,30UH,Preston City Council,Health & Housing,Postages,17/02/2016,01772968,1618.80
Lancaster City Council,30UH,Preston City Council,Resources,Management Fees,15/01/2016,M54,153050.00
Lancaster City Council,30UH,Preston City Council,Resources,Management Fees,15/02/2016,M58,153050.00
Lancaster City Council,30UH,Preston City Council,Resources,Management Fees,15/03/2016,M63,153050.00
Lancaster City Council,30UH,Preston City Council,Resources,Printing & Stationery,09/02/2016,01771011,824.00
Lancaster City Council,30UH,Preston City Council,Resources,Printing & Stationery,10/03/2016,01774526,710.00
Lancaster City Council,30UH,Preston City Council,Resources,Printing & Stationery,10/03/2016,01774982,710.00
Lancaster City Council,30UH,Preston City Council,Regeneration and Planning,Marketing,17/03/2016,01774908,4944.00
Lancaster City Council,30UH,Preston City Council,Regeneration and Planning,Marketing,17/03/2016,01774908,840.00
Lancaster City Council,30UH,Prince and Pearce Limited,Regeneration and Planning,Services - Consultants,28/01/2016,151201,4750.00
Lancaster City Council,30UH,Prince and Pearce Limited,Regeneration and Planning,Services - Consultants,23/03/2016,120201,4750.00
Lancaster City Council,30UH,Principal Pipe Organs,Resources,Grants,11/03/2016,1030,4080.00
Lancaster City Council,30UH,Print Image Facilities LLP,Governance,Postages,18/01/2016,C301983,2370.54
Lancaster City Council,30UH,Print Image Facilities LLP,Governance,Postages,24/02/2016,C302046,2631.22
Lancaster City Council,30UH,Print Image Facilities LLP,Governance,Postages,07/03/2016,C302052,2022.71
Lancaster City Council,30UH,Print Image Network Ltd,Governance,Printing & Stationery,28/01/2016,A012760,2583.07
Lancaster City Council,30UH,Print Image Network Ltd,Governance,Printing & Stationery,30/03/2016,AO12859,1679.00
Lancaster City Council,30UH,Profile Security Services Ltd,Environmental Services,Security Services,20/01/2016,122383,6030.29
Lancaster City Council,30UH,Profile Security Services Ltd,Environmental Services,Security Services,27/01/2016,123341,6231.30
Lancaster City Council,30UH,Profile Security Services Ltd,Environmental Services,Security Services,31/03/2016,124371,6231.30
Lancaster City Council,30UH,Profile Security Services Ltd,Environmental Services,Security Services,31/03/2016,125228,5829.28
Lancaster City Council,30UH,Promenade Concert Orchestra,Regeneration and Planning,Venue - Premises Hire Costs,04/02/2016,npr000425,2229.61
Lancaster City Council,30UH,Promenade Concert Orchestra,Regeneration and Planning,Venue - Premises Hire Costs,16/03/2016,npr000444,1466.31
Lancaster City Council,30UH,Pump Supplies Ltd,Regeneration and Planning,R & M - General,17/02/2016,WI200252,555.00
Lancaster City Council,30UH,Purchase Power,Resources,Postages,08/01/2016,B0294045,1013.00
Lancaster City Council,30UH,Purchase Power,Resources,Postages,10/02/2016,BD375284,1013.00
Lancaster City Council,30UH,Purchase Power,Resources,Postages,10/03/2016,BD459457,1013.00
Lancaster City Council,30UH,Pye Motors  Ltd,Environmental Services,Repair & Mtce Of Vehicles,12/01/2016,230086,569.00
Lancaster City Council,30UH,Pye Property Ltd,Health & Housing,Homelessness Priority Need Order,24/02/2016,1 Priory Walk depos,500.00
Lancaster City Council,30UH,QAS Limited,Health & Housing,Alarm Systems,10/03/2016,ONOO414587,500.00
Lancaster City Council,30UH,Quartzelec Ltd,Environmental Services,Capital Payments To Contractors,18/01/2016,7098815,949.00
Lancaster City Council,30UH,Quartzelec Ltd,Environmental Services,Capital Payments To Contractors,29/01/2016,7099208,2482.00
Lancaster City Council,30UH,Quartzelec Ltd,Environmental Services,Capital Payments To Contractors,09/02/2016,7099551,2482.00
Lancaster City Council,30UH,Quartzelec Ltd,Environmental Services,Capital Payments To Contractors,02/03/2016,7099899,2555.00
Lancaster City Council,30UH,Quartzelec Ltd,Environmental Services,Capital Payments To Contractors,02/03/2016,7100147,511.00
Lancaster City Council,30UH,Quartzelec Ltd,Environmental Services,Capital Payments To Contractors,11/03/2016,7100951,584.00
Lancaster City Council,30UH,Quartzelec Ltd,Environmental Services,Capital Payments To Contractors,31/03/2016,7102126,949.00
Lancaster City Council,30UH,Queensbury Shelters Ltd,Environmental Services,R & M - Buildings,09/03/2016,61603,3898.61
Lancaster City Council,30UH,RAM,Regeneration and Planning,Exhibitions & Events - Guarantees,30/03/2016,2013944,3000.00
Lancaster City Council,30UH,RAM,Regeneration and Planning,Exhibitions & Events - Guarantees,30/03/2016,Ram2015166,2250.00
Lancaster City Council,30UH,Ray Adams Electrical Services,Environmental Services,R & M - Buildings,21/03/2016,613,560.00
Lancaster City Council,30UH,R Briggs & Son (Lancaster) Ltd,Environmental Services,R & M - Buildings,10/02/2016,17696,536.00
Lancaster City Council,30UH,R Briggs & Son (Lancaster) Ltd,Environmental Services,Routine Maintenance,10/02/2016,17711,513.40
Lancaster City Council,30UH,R Briggs & Son (Lancaster) Ltd,Environmental Services,Routine Maintenance,10/02/2016,17715,682.50
Lancaster City Council,30UH,R Brockbank Joinery,Environmental Services,R & M - General,08/03/2016,401,3000.00
Lancaster City Council,30UH,R Brockbank Joinery,Environmental Services,R & M - General,08/03/2016,401,1080.00
Lancaster City Council,30UH,Real Asset Management Plc,Resources,Software - Real Asset Management,31/03/2016,SJI017063,5540.00
Lancaster City Council,30UH,Reed Business Information Limited,Governance,Corporate Training Budget,23/02/2016,DSINV00106961,2955.00
Lancaster City Council,30UH,Reed Specialist Recruitment Limited,Resources,Services - General,28/01/2016,0229105100,535.14
Lancaster City Council,30UH,Reed Specialist Recruitment Limited,Resources,Services - General,28/01/2016,0229122298,535.14
Lancaster City Council,30UH,Reed Specialist Recruitment Limited,Resources,Services - General,03/02/2016,030216,2000.00
Lancaster City Council,30UH,Reed Specialist Recruitment Limited,Resources,Services - General,10/02/2016,0229167493,528.23
Lancaster City Council,30UH,Rentokil Initial UK Ltd,Environmental Services,Contract Maintenance,28/01/2016,30011976,1186.90
Lancaster City Council,30UH,Rentokil Initial UK Ltd,Resources,R & M - Buildings,22/01/2016,300012358,780.16
Lancaster City Council,30UH,Rexel UK Ltd,Environmental Services,Other Construction Costs,31/03/2016,135433620,547.93
Lancaster City Council,30UH,Rexel UK Ltd,Environmental Services,White Lund Stock,25/01/2016,135062470,4290.00
Lancaster City Council,30UH,R G Parkins & Partners Ltd,Environmental Services,Miscellaneous Expenditure,31/03/2016,L23725/02,1210.00
Lancaster City Council,30UH,R G Parkins & Partners Ltd,Environmental Services,Miscellaneous Expenditure,31/03/2016,L32724/01,4250.00
Lancaster City Council,30UH,R G Parkins & Partners Ltd,Environmental Services,R & M - Buildings,06/01/2016,L32516/01,1476.25
Lancaster City Council,30UH,R G Parkins & Partners Ltd,Environmental Services,R & M - Buildings,06/01/2016,L32517/01,750.00
Lancaster City Council,30UH,R G Parkins & Partners Ltd,Environmental Services,R & M - Buildings,28/01/2016,L32196/03,741.07
Lancaster City Council,30UH,R G Parkins & Partners Ltd,Environmental Services,R & M - Buildings,28/01/2016,L32197/02,1684.15
Lancaster City Council,30UH,R G Parkins & Partners Ltd,Environmental Services,R & M - Buildings,28/01/2016,L32198/02,500.00
Lancaster City Council,30UH,R G Parkins & Partners Ltd,Environmental Services,R & M - Buildings,01/02/2016,L31612/01,2000.00
Lancaster City Council,30UH,R G Parkins & Partners Ltd,Environmental Services,R & M - Buildings,01/02/2016,L32021/02,535.00
Lancaster City Council,30UH,R G Parkins & Partners Ltd,Environmental Services,R & M - Buildings,31/03/2016,L32021/03,1000.00
Lancaster City Council,30UH,R G Parkins & Partners Ltd,Environmental Services,R & M - Buildings,31/03/2016,L32196/02,800.00
Lancaster City Council,30UH,Ricoh UK Ltd,Resources,Printing\Copying Equipment,07/01/2016,56846442,1200.00
Lancaster City Council,30UH,Ricoh UK Ltd,Resources,Printing\Copying Equipment,04/02/2016,56846440,2100.00
Lancaster City Council,30UH,Ricoh UK Ltd,Resources,Printing\Copying Equipment,04/02/2016,56846441,1200.00
Lancaster City Council,30UH,Ricoh UK Ltd,Resources,Printing\Copying Equipment,03/03/2016,100465257,10488.75
Lancaster City Council,30UH,Risual Limited,Resources,Services - Consultants,10/03/2016,103721,950.00
Lancaster City Council,30UH,Risual Limited,Resources,Services - Consultants,31/03/2016,103828,2850.00
Lancaster City Council,30UH,R K Sweets Ltd,Environmental Services,Miscellaneous Expenditure,17/03/2016,000526,1195.00
Lancaster City Council,30UH,R Leisure Hire Limited,Health & Housing,Equipment and Tools - General,11/01/2016,1512221LA11QR,600.00
Lancaster City Council,30UH,Rosehill Polymers Ltd.,Environmental Services,White Lund Stock,10/03/2016,50970,576.35
Lancaster City Council,30UH,R Price Building Services,Environmental Services,Equipment Funded by Reserves,12/02/2016,0020,5850.00
Lancaster City Council,30UH,R Price Building Services,Environmental Services,Equipment Funded by Reserves,19/02/2016,0020,4650.00
Lancaster City Council,30UH,R Price Building Services,Environmental Services,Equipment Funded by Reserves,19/02/2016,0020,1200.00
Lancaster City Council,30UH,R Price Building Services,Environmental Services,Equipment Funded by Reserves,01/03/2016,0022,1450.00
Lancaster City Council,30UH,R Price Building Services,Environmental Services,Equipment Funded by Reserves,01/03/2016,0022,600.00
Lancaster City Council,30UH,R Price Building Services,Environmental Services,Equipment Funded by Reserves,31/03/2016,0045,740.00
Lancaster City Council,30UH,Russell Wood (Plasterer),Environmental Services,Contracted Services,28/01/2016,21,600.00
Lancaster City Council,30UH,Russell Wood (Plasterer),Environmental Services,Contracted Services,31/03/2016,31,600.00
Lancaster City Council,30UH,Sandler Seating Ltd,Resources,Fixtures & Fittings - General,10/02/2016,16378,1830.00
Lancaster City Council,30UH,Sandler Seating Ltd,Resources,Fixtures & Fittings - General,10/02/2016,16378,1969.74
Lancaster City Council,30UH,Sandler Seating Ltd,Resources,Fixtures & Fittings - General,10/02/2016,16378,2064.60
Lancaster City Council,30UH,Sandler Seating Ltd,Resources,Fixtures & Fittings - General,10/02/2016,16378,39618.00
Lancaster City Council,30UH,Secure Empty Property Limited,Environmental Services,Void Maintenance - External,03/03/2016,12717,1644.06
Lancaster City Council,30UH,Secure Empty Property Limited,Environmental Services,Void Maintenance - External,22/03/2016,12799,1506.94
Lancaster City Council,30UH,Shard Construction Ltd t/a Wyre Surfacing,Environmental Services,Contracted Services,10/03/2016,11.730,7975.00
Lancaster City Council,30UH,Shaun Anthony Holmes,Health & Housing,Capital Grants,21/03/2016,spr000819,1100.00
Lancaster City Council,30UH,Shaw & Sons Limited,Governance,Services - General,15/03/2016,000249107,1408.75
Lancaster City Council,30UH,Shorrocks Building Works Limited,Environmental Services,Contracted Services,11/01/2016,3359L,590.00
Lancaster City Council,30UH,Shorrocks Building Works Limited,Environmental Services,Contracted Services,11/01/2016,3361L,1110.00
Lancaster City Council,30UH,Shorrocks Building Works Limited,Environmental Services,Contracted Services,11/01/2016,3364L,2589.00
Lancaster City Council,30UH,Shorrocks Building Works Limited,Environmental Services,Contracted Services,18/01/2016,3362L,1125.00
Lancaster City Council,30UH,Shorrocks Building Works Limited,Environmental Services,Contracted Services,09/02/2016,3366L,722.00
Lancaster City Council,30UH,Shorrocks Building Works Limited,Environmental Services,Contracted Services,09/02/2016,3367L,2650.00
Lancaster City Council,30UH,Shorrocks Building Works Limited,Environmental Services,Contracted Services,03/03/2016,3371L,1930.00
Lancaster City Council,30UH,Shorrocks Building Works Limited,Environmental Services,Contracted Services,03/03/2016,3372L,3037.00
Lancaster City Council,30UH,Shorrocks Building Works Limited,Environmental Services,Contracted Services,03/03/2016,3373L,2532.00
Lancaster City Council,30UH,Shorrocks Building Works Limited,Environmental Services,Contracted Services,03/03/2016,3374L,1530.00
Lancaster City Council,30UH,Shorrocks Building Works Limited,Environmental Services,Contracted Services,03/03/2016,3375L,629.00
Lancaster City Council,30UH,Shorrocks Building Works Limited,Environmental Services,Contracted Services,03/03/2016,3376L,870.00
Lancaster City Council,30UH,Shorrocks Building Works Limited,Environmental Services,Contracted Services,03/03/2016,3377L,1181.00
Lancaster City Council,30UH,Shorrocks Building Works Limited,Environmental Services,Contracted Services,11/03/2016,3378L,750.00
Lancaster City Council,30UH,Shorrocks Building Works Limited,Environmental Services,Contracted Services,11/03/2016,3379L,1670.00
Lancaster City Council,30UH,Shorrocks Building Works Limited,Environmental Services,Contracted Services,11/03/2016,3380L,4460.00
Lancaster City Council,30UH,Shorrocks Building Works Limited,Environmental Services,Contracted Services,21/03/2016,3381L,805.00
Lancaster City Council,30UH,Shorrocks Building Works Limited,Environmental Services,Contracted Services,24/03/2016,3383L,825.00
Lancaster City Council,30UH,Shorrocks Building Works Limited,Environmental Services,Contracted Services,31/03/2016,3386L,4025.00
Lancaster City Council,30UH,Shorrocks Building Works Limited,Environmental Services,R & M - Buildings,31/03/2016,3385L,3280.00
Lancaster City Council,30UH,Shorrocks Building Works Limited,Environmental Services,R & M - Buildings,31/03/2016,3385L,6400.00
Lancaster City Council,30UH,Shorrocks Building Works Limited,Environmental Services,Void Maintenance - External,20/01/2016,3365L,960.00
Lancaster City Council,30UH,Shorrocks Building Works Limited,Environmental Services,Void Maintenance - External,09/02/2016,3369L,8723.00
Lancaster City Council,30UH,Slater & Gordon,Resources,Insurance Excess,19/02/2016,L2650Burrow,14054.73
Lancaster City Council,30UH,Slater Safety Supplies,Environmental Services,White Lund Stock,01/03/2016,171097,1324.10
Lancaster City Council,30UH,Solotrim Ltd.,Resources,Rent,10/03/2016,00002177,7325.00
Lancaster City Council,30UH,Sparks Careers Limited,Regeneration and Planning,Employee Related Advertising,11/02/2016,ME12204,1200.00
Lancaster City Council,30UH,Specsavers Optical Superstores Ltd,Health & Housing,Corporate Safety,26/02/2016,65508,878.10
Lancaster City Council,30UH,SPIE Ltd,Resources,R & M - Buildings,26/03/2016,0027051,2198.86
Lancaster City Council,30UH,Sportsafe UK Ltd.,Health & Housing,Equipment and Tools - General,16/03/2016,484988,760.02
Lancaster City Council,30UH,S R Brown Ltd,Health & Housing,Capital Grants,15/02/2016,spr000809,2490.00
Lancaster City Council,30UH,S R Brown Ltd,Health & Housing,Capital Grants,23/03/2016,spr000825,2558.03
Lancaster City Council,30UH,Stagecoach Services Limited,Regeneration and Planning,Stagecoach Tickets,17/03/2016,397633,11870.32
Lancaster City Council,30UH,Stagecoach Services Limited,Regeneration and Planning,Stagecoach Tickets,17/03/2016,397641,1884.70
Lancaster City Council,30UH,Standard Fuel Oils Ltd,Environmental Services,White Lund Stock,04/01/2016,30695,14414.30
Lancaster City Council,30UH,Standard Fuel Oils Ltd,Environmental Services,White Lund Stock,04/01/2016,30696,2160.00
Lancaster City Council,30UH,Standard Fuel Oils Ltd,Environmental Services,White Lund Stock,18/01/2016,31289,17927.77
Lancaster City Council,30UH,Standard Fuel Oils Ltd,Environmental Services,White Lund Stock,10/02/2016,31965,17581.54
Lancaster City Council,30UH,Standard Fuel Oils Ltd,Environmental Services,White Lund Stock,16/02/2016,32654,17686.43
Lancaster City Council,30UH,Standard Fuel Oils Ltd,Environmental Services,White Lund Stock,08/03/2016,33630,18018.00
Lancaster City Council,30UH,Standard Fuel Oils Ltd,Environmental Services,White Lund Stock,29/03/2016,34532,18547.08
Lancaster City Council,30UH,SThree Partnership LLP t/a Computer Futures ,Resources,Mobile Telephones,14/01/2016,01008000513179,3600.00
Lancaster City Council,30UH,SThree Partnership LLP t/a Computer Futures ,Resources,Services - Consultants,14/01/2016,01008000509632,2000.00
Lancaster City Council,30UH,SThree Partnership LLP t/a Computer Futures ,Resources,Services - Consultants,21/01/2016,01008000517162,2800.00
Lancaster City Council,30UH,SThree Partnership LLP t/a Computer Futures ,Resources,Services - Consultants,27/01/2016,01008000520795,3600.00
Lancaster City Council,30UH,SThree Partnership LLP t/a Computer Futures ,Resources,Services - Consultants,04/02/2016,01008000524436,4000.00
Lancaster City Council,30UH,SThree Partnership LLP t/a Computer Futures ,Resources,Services - Consultants,18/02/2016,01008000527190,2000.00
Lancaster City Council,30UH,SThree Partnership LLP t/a Computer Futures ,Resources,Services - Consultants,03/03/2016,01008000530505,4000.00
Lancaster City Council,30UH,SThree Partnership LLP t/a Computer Futures ,Resources,Services - Consultants,10/03/2016,01008000535115,2000.00
Lancaster City Council,30UH,SThree Partnership LLP t/a Computer Futures ,Resources,Services - Consultants,16/03/2016,01008000535863,2000.00
Lancaster City Council,30UH,SThree Partnership LLP t/a Computer Futures ,Resources,Services - Consultants,24/03/2016,01008000537910,2000.00
Lancaster City Council,30UH,SThree Partnership LLP t/a Computer Futures ,Resources,Services - Consultants,24/03/2016,01008000539307,2000.00
Lancaster City Council,30UH,Stoneyport Associates,Regeneration and Planning,Exhibitions & Events - % Above Guarantee,24/03/2016,2014113,972.72
Lancaster City Council,30UH,STORM Consultancy Solutions LTD,Regeneration and Planning,Grants,21/01/2016,INV-1130,11384.00
Lancaster City Council,30UH,STORM Consultancy Solutions LTD,Regeneration and Planning,Services - General,21/01/2016,INV-1130,2454.25
Lancaster City Council,30UH,Sunny`s Inn,Health & Housing,Services - Bed and Breakfast,31/03/2016,Sunny`s Inn 24.3.16,585.00
Lancaster City Council,30UH,Supa Scaffold Ltd,Environmental Services,Materials - General,06/01/2016,1624,5300.00
Lancaster City Council,30UH,Supa Scaffold Ltd,Environmental Services,Materials - General,11/02/2016,1632,6100.00
Lancaster City Council,30UH,Supa Scaffold Ltd,Environmental Services,Materials - General,16/03/2016,1665,5800.00
Lancaster City Council,30UH,Switchshop Limited,Resources,Infrastructure - Update & Maintenance,19/01/2016,123044,5063.00
Lancaster City Council,30UH,Switchshop Limited,Resources,Telephones Mtce,21/01/2016,123080,3042.00
Lancaster City Council,30UH,TABS FM LIMITED,Resources,Software Purchase\Licences,18/02/2016,IV5451,750.00
Lancaster City Council,30UH,TABS FM LIMITED,Resources,Software Purchase\Licences,18/02/2016,IV5451,525.00
Lancaster City Council,30UH,TCL Developments Limited,Environmental Services,Capital Payments To Contractors,09/02/2016,791,1135.62
Lancaster City Council,30UH,TCL Developments Limited,Environmental Services,Capital Payments To Contractors,31/03/2016,800,625.00
Lancaster City Council,30UH,Terberg Matec UK Ltd,Environmental Services,Repair & Mtce Of Vehicles,02/02/2016,96322026,1002.10
Lancaster City Council,30UH,Terry Kemp,Environmental Services,Contracted Services,08/02/2016,cpr000582,550.00
Lancaster City Council,30UH,TESGL Limited t/a SSE Enterprise Energy Solutions,Health & Housing,R & M - Buildings,11/03/2016,io94861,550.00
Lancaster City Council,30UH,The Bay,Environmental Services,Printing & Stationery,08/02/2016,CN1448,2197.00
Lancaster City Council,30UH,The Blackburn Products Co Ltd,Health & Housing,Services - General,20/01/2016,18479,1812.00
Lancaster City Council,30UH,The Coppice Co-op,Regeneration and Planning,Forestry Commission Works,08/03/2016,extraction,528.00
Lancaster City Council,30UH,The Coppice Co-op,Regeneration and Planning,Forestry Commission Works,08/03/2016,LCC007,832.00
Lancaster City Council,30UH,The Coppice Co-op,Regeneration and Planning,Forestry Commission Works,17/03/2016,LCC006,1560.00
Lancaster City Council,30UH,The Dukes Playhouse Ltd,Regeneration and Planning,Grants,21/01/2016,Grant 2015/2016/4,34425.00
Lancaster City Council,30UH,The Dukes Playhouse Ltd,Regeneration and Planning,Services - Consultants,25/02/2016,LUL 2015-5,11580.00
Lancaster City Council,30UH,The Dukes Playhouse Ltd,Regeneration and Planning,Services - Consultants,25/02/2016,LUL 2016-1,1000.00
Lancaster City Council,30UH,The Excellent Ramp Systems Limited,Health & Housing,Capital Grants,21/01/2016,spr000794,2700.00
Lancaster City Council,30UH,The Excellent Ramp Systems Limited,Health & Housing,Capital Grants,16/03/2016,spr000817,3300.00
Lancaster City Council,30UH,The Helping Hand Company (Ledbury) Ltd.,Environmental Services,White Lund Stock,15/02/2016,262195,752.50
Lancaster City Council,30UH,The James Mercer Group Ltd,Health & Housing,Other Fixed Plant,10/02/2016,29172,1766.00
Lancaster City Council,30UH,The James Mercer Group Ltd,Health & Housing,R & M - Buildings,12/01/2016,28461,1383.00
Lancaster City Council,30UH,The James Mercer Group Ltd,Health & Housing,R & M - Buildings,10/02/2016,29194,2094.00
Lancaster City Council,30UH,The James Mercer Group Ltd,Health & Housing,R & M - Buildings,10/02/2016,29194,716.00
Lancaster City Council,30UH,The James Mercer Group Ltd,Health & Housing,R & M - Buildings,29/03/2016,30453,786.20
Lancaster City Council,30UH,The James Mercer Group Ltd,Resources,R & M - Buildings,22/03/2016,29820,1013.46
Lancaster City Council,30UH,The James Mercer Group Ltd,Resources,R & M - Buildings,22/03/2016,29894,1737.22
Lancaster City Council,30UH,The James Mercer Group Ltd,Resources,R & M - Buildings,23/03/2016,28830,2880.00
Lancaster City Council,30UH,The Lune Rivers Trust,Regeneration and Planning,R & M - General,17/03/2016,LCC/2015/FIN,500.00
Lancaster City Council,30UH,The Networking People (North West) Limited,Resources,Capital Payments To Contractors,03/03/2016,INV002700,3300.00
Lancaster City Council,30UH,The Networking People (North West) Limited,Resources,Capital Payments To Contractors,03/03/2016,INV002700,2200.00
Lancaster City Council,30UH,The Networking People (North West) Limited,Resources,Infrastructure - Update & Maintenance,03/03/2016,INV002710,530.63
Lancaster City Council,30UH,The Networking People (North West) Limited,Resources,Services - Consultants,27/01/2016,INV002652,550.00
Lancaster City Council,30UH,The Samaritans of Lancaster and District,Governance,Grants,26/02/2016,2015/16 Comm Pay,2000.00
Lancaster City Council,30UH,The Travellers Choice,Health & Housing,Central Transport - General,13/01/2016,83672,504.00
Lancaster City Council,30UH,The Travellers Choice,Health & Housing,Central Transport - General,13/01/2016,83673,686.00
Lancaster City Council,30UH,The Travellers Choice,Health & Housing,Central Transport - General,13/01/2016,83674,581.00
Lancaster City Council,30UH,The Travellers Choice,Health & Housing,Central Transport - General,03/02/2016,84232,1080.00
Lancaster City Council,30UH,The Travellers Choice,Health & Housing,Central Transport - General,03/02/2016,84233,1470.00
Lancaster City Council,30UH,The Travellers Choice,Health & Housing,Central Transport - General,03/02/2016,84234,1050.00
Lancaster City Council,30UH,The Travellers Choice,Health & Housing,Central Transport - General,03/02/2016,84235,930.00
Lancaster City Council,30UH,The Travellers Choice,Health & Housing,Central Transport - General,15/03/2016,85202,1152.00
Lancaster City Council,30UH,The Travellers Choice,Health & Housing,Central Transport - General,15/03/2016,85203,1568.00
Lancaster City Council,30UH,The Travellers Choice,Health & Housing,Central Transport - General,15/03/2016,85204,1050.00
Lancaster City Council,30UH,The Travellers Choice,Health & Housing,Central Transport - General,15/03/2016,85205,930.00
Lancaster City Council,30UH,The Travellers Choice,Regeneration and Planning,Coach Tours,06/01/2016,npr000412,548.33
Lancaster City Council,30UH,The Uniform & Leisurewear Company Ltd,Environmental Services,White Lund Stock,26/01/2016,95151,1189.30
Lancaster City Council,30UH,Thomas Graham & Sons (Iron & Steel) Ltd,Environmental Services,Equipment and Tools - General,02/03/2016,MR201854,502.18
Lancaster City Council,30UH,Thomas Graham & Sons (Iron & Steel) Ltd,Environmental Services,Internal Professional Fees,17/02/2016,MR201858,799.00
Lancaster City Council,30UH,Thomas Graham & Sons (Iron & Steel) Ltd,Environmental Services,Other Construction Costs,05/01/2016,MR198285,698.00
Lancaster City Council,30UH,Thomas Graham & Sons (Iron & Steel) Ltd,Environmental Services,Other Construction Costs,13/01/2016,MR198783,1143.60
Lancaster City Council,30UH,Thomas Graham & Sons (Iron & Steel) Ltd,Environmental Services,Other Construction Costs,31/03/2016,MR204576,622.60
Lancaster City Council,30UH,Thomson Reuters (Professional) UK Ltd,Governance,Books & Periodicals,17/02/2016,6800247796,7206.63
Lancaster City Council,30UH,Thomson Reuters (Professional) UK Ltd,Regeneration and Planning,Subscriptions,17/03/2016,6800255088,1183.00
Lancaster City Council,30UH,Thornburrow Roofing Ltd,Health & Housing,Home Improvement Works,03/02/2016,Inv. 8055,500.00
Lancaster City Council,30UH,T Jolly Services (UK) Ltd,Resources,R & M - Buildings,17/03/2016,65981,9640.25
Lancaster City Council,30UH,T Jolly Services (UK) Ltd,Resources,R & M - Buildings,26/03/2016,65518,852.00
Lancaster City Council,30UH,T-Mobile (UK) Ltd.,Resources,Mobile Telephones,13/01/2016,V01172737087,1786.28
Lancaster City Council,30UH,T-Mobile (UK) Ltd.,Resources,Mobile Telephones,10/02/2016,V01184996753,1649.40
Lancaster City Council,30UH,T-Mobile (UK) Ltd.,Resources,Mobile Telephones,10/03/2016,V01196702986,1693.14
Lancaster City Council,30UH,Total Mobile Ltd,Environmental Services,Mobile Telephones,17/03/2016,21091,6265.52
Lancaster City Council,30UH,Training Byte Size Ltd,Governance,Service Training Budget,26/01/2016,3394,1035.00
Lancaster City Council,30UH,Trapeze Group (UK) Ltd,Environmental Services,Materials - General,31/03/2016,INV0082013,2371.85
Lancaster City Council,30UH,Trapeze Group (UK) Ltd,Environmental Services,Service Training Budget,31/03/2016,INV0082148,2406.15
Lancaster City Council,30UH,Travelers Insurance Company Ltd,Resources,Insurance Excess,07/01/2016,770286,10000.00
Lancaster City Council,30UH,Travelers Insurance Company Ltd,Resources,Insurance Excess,14/01/2016,813226,10000.00
Lancaster City Council,30UH,T. R. Travis & Sons,Environmental Services,Services - Waste Disposal,21/01/2016,15865,800.00
Lancaster City Council,30UH,Tunstall Healthcare(UK)Ltd,Health & Housing,Equipment Funded by Reserves,07/01/2016,3in/10272683,562.05
Lancaster City Council,30UH,Tunstall Healthcare(UK)Ltd,Health & Housing,Equipment Funded by Reserves,07/01/2016,3in/10272683,2970.00
Lancaster City Council,30UH,Tunstall Healthcare(UK)Ltd,Health & Housing,Equipment Funded by Reserves,21/01/2016,3in/10273266,579.00
Lancaster City Council,30UH,Tunstall Healthcare(UK)Ltd,Health & Housing,Equipment Funded by Reserves,23/02/2016,679966,3960.00
Lancaster City Council,30UH,Tunstall Healthcare(UK)Ltd,Environmental Services,Contracted Services,16/02/2016,INV/50289340,727.86
Lancaster City Council,30UH,Turley Associates Ltd,Regeneration and Planning,Services - Consultants,11/02/2016,218508,505.00
Lancaster City Council,30UH,Turley Associates Ltd,Regeneration and Planning,Services - Consultants,03/03/2016,219010,1062.50
Lancaster City Council,30UH,Tyrone Lewis General Building Contractors,Environmental Services,Capital Payments To Contractors,11/02/2016,12/01/16,1580.00
Lancaster City Council,30UH,Tyrone Lewis General Building Contractors,Environmental Services,Contracted Services,11/01/2016,2262762,1275.00
Lancaster City Council,30UH,Tyrone Lewis General Building Contractors,Environmental Services,Contracted Services,28/01/2016,2262751,1110.00
Lancaster City Council,30UH,UK Roofing Co,Environmental Services,Contracted Services,06/01/2016,3617,1200.00
Lancaster City Council,30UH,UK Roofing Co,Environmental Services,Contracted Services,18/01/2016,3618,560.00
Lancaster City Council,30UH,UK Roofing Co,Environmental Services,Contracted Services,02/03/2016,3715,780.00
Lancaster City Council,30UH,UK Roofing Co,Environmental Services,Contracted Services,07/03/2016,3714,700.00
Lancaster City Council,30UH,UK Roofing Co,Environmental Services,Contracted Services,31/03/2016,3769,750.00
Lancaster City Council,30UH,United Utilities Water Limited,Health & Housing,Water Services,21/01/2016,4031369350,1187.25
Lancaster City Council,30UH,United Utilities Water Limited,Health & Housing,Water Services,21/01/2016,4085689465,1785.43
Lancaster City Council,30UH,United Utilities Water Limited,Health & Housing,Water Services,22/01/2016,inv01177685,970.16
Lancaster City Council,30UH,United Utilities Water Limited,Health & Housing,Water Services,04/02/2016,4085689807,3253.21
Lancaster City Council,30UH,United Utilities Water Limited,Health & Housing,Water Services,17/02/2016,4085689830,1360.25
Lancaster City Council,30UH,United Utilities Water Limited,Environmental Services,Water Services,20/01/2016,4075208269,4958.25
Lancaster City Council,30UH,United Utilities Water Limited,Environmental Services,Water Services,09/02/2016,4077148659,1224.89
Lancaster City Council,30UH,United Utilities Water Limited,Environmental Services,Water Services,24/02/2016,01237848,3349.61
Lancaster City Council,30UH,United Utilities Water Limited,Environmental Services,Water Services,15/03/2016,4171193474,16242.13
Lancaster City Council,30UH,United Utilities Water Limited,Environmental Services,Water Services,22/03/2016,4076362540,733.35
Lancaster City Council,30UH,United Utilities Water Limited,Environmental Services,Water Services,24/03/2016,4082082502,4452.31
Lancaster City Council,30UH,United Utilities Water Limited,Environmental Services,Water Services,29/03/2016,4081648779,3146.01
Lancaster City Council,30UH,United Utilities Water Limited,Environmental Services,Water Services,31/03/2016,4085689738,768.80
Lancaster City Council,30UH,United Utilities Water Limited,Environmental Services,Water Services,31/03/2016,4085689794,867.35
Lancaster City Council,30UH,United Utilities Water Limited,Environmental Services,Water Services,31/03/2016,uu-INV01025550,585.33
Lancaster City Council,30UH,United Utilities Water Limited,Environmental Services,Water Services,31/03/2016,uu-INV01234535,1451.50
Lancaster City Council,30UH,United Utilities Water Limited,Environmental Services,Water Services,31/03/2016,uu-INV01328161,3391.91
Lancaster City Council,30UH,United Utilities Water Plc,Health & Housing,Water Services,11/01/2016,uu-INV01112821,9478.47
Lancaster City Council,30UH,United Utilities Water Plc,Health & Housing,Water Services,19/02/2016,uu-INVO1231303,3517.52
Lancaster City Council,30UH,United Utilities Water Plc,Health & Housing,Water Services,02/03/2016,uu-INV01241294,681.88
Lancaster City Council,30UH,United Utilities Water Plc,Resources,Water Services,21/01/2016,4084242484,3107.58
Lancaster City Council,30UH,United Utilities Water Plc,Resources,Water Services,05/02/2016,4194756140,1105.05
Lancaster City Council,30UH,United Utilities Water Plc,Resources,Water Services,10/02/2016,4107061741,744.79
Lancaster City Council,30UH,United Utilities Water Plc,Resources,Water Services,15/03/2016,4085689636,2614.67
Lancaster City Council,30UH,United Utilities Water Plc,Regeneration and Planning,Water Services,25/02/2016,uu-INV01231330,965.90
Lancaster City Council,30UH,United Utilities Water PLC,Health & Housing,Water Services,07/01/2016,4085689841,1426.65
Lancaster City Council,30UH,Urban Vision Partnership Ltd,Regeneration and Planning,Services - Consultants,28/01/2016,6035002022,3635.12
Lancaster City Council,30UH,Urban Vision Partnership Ltd,Regeneration and Planning,Services - Consultants,11/02/2016,6035002060,11996.14
Lancaster City Council,30UH,Urban Vision Partnership Ltd,Regeneration and Planning,Services - Consultants,02/03/2016,6035002238,6512.54
Lancaster City Council,30UH,Urban Vision Partnership Ltd,Regeneration and Planning,Services - Consultants,24/03/2016,6035002342,4309.44
Lancaster City Council,30UH,Urban Vision Partnership Ltd,Regeneration and Planning,Services - Consultants,24/03/2016,6035002347,5636.17
Lancaster City Council,30UH,Urban Vision Partnership Ltd,Regeneration and Planning,Services - Consultants,24/03/2016,6035002399,6823.81
Lancaster City Council,30UH,Valley View Pets Hotel,Health & Housing,Services - Kennelling,14/01/2016,23/15,2695.00
Lancaster City Council,30UH,Valley View Pets Hotel,Health & Housing,Services - Kennelling,26/01/2016,25/15,2695.00
Lancaster City Council,30UH,Valley View Pets Hotel,Health & Housing,Services - Kennelling,26/02/2016,02/16,2695.00
Lancaster City Council,30UH,Valley View Pets Hotel,Health & Housing,Services - Kennelling,23/03/2016,04/16,2695.00
Lancaster City Council,30UH,Variopool B.V.,Health & Housing,Other Fixed Plant,04/02/2016,V160766,5671.67
Lancaster City Council,30UH,VBA Joint Venture Ltd,Regeneration and Planning,Capital Payments To Contractors,28/01/2016,DRCINV/00000497,121743.94
Lancaster City Council,30UH,VBA Joint Venture Ltd,Regeneration and Planning,Capital Payments To Contractors,18/02/2016,0137,120645.65
Lancaster City Council,30UH,VBA Joint Venture Ltd,Regeneration and Planning,Capital Payments To Contractors,17/03/2016,DRCINV/00000547,188713.59
Lancaster City Council,30UH,VBA Joint Venture Ltd,Regeneration and Planning,Miscellaneous Expenditure,11/02/2016,DRCINV/0000508,13976.03
Lancaster City Council,30UH,Victim Support Lancashire,Governance,Grants,08/03/2016,2015/16 Comm Pay,5200.00
Lancaster City Council,30UH,Vision Services (North West) Ltd,Environmental Services,Contracted Services,12/02/2016,39264,571.81
Lancaster City Council,30UH,Vocal Limited,Health & Housing,Equipment and Tools - General,13/01/2016,137426,500.00
Lancaster City Council,30UH,Vodafone Limited,Resources,Mobile Telephones,24/02/2016,79226945,5488.44
Lancaster City Council,30UH,Vodafone Ltd ,Resources,Data Line Rental,07/01/2016,14143096,988.54
Lancaster City Council,30UH,Vodafone Ltd ,Resources,Data Line Rental,13/01/2016,UK10/012016/4656,1433.33
Lancaster City Council,30UH,Vodafone Ltd ,Resources,Data Line Rental,13/01/2016,UK10/012016/8464,2487.51
Lancaster City Council,30UH,Vodafone Ltd ,Resources,Data Line Rental,10/02/2016,UK10/022016/1129,1433.33
Lancaster City Council,30UH,Vodafone Ltd ,Resources,Data Line Rental,09/03/2016,UK10/032016/267,1433.33
Lancaster City Council,30UH,Vodafone Ltd ,Resources,Line Rental - Members,24/03/2016,14084729,717.28
Lancaster City Council,30UH,Vodafone Ltd ,Resources,Telephones,04/02/2016,14213717,1047.36
Lancaster City Council,30UH,Vodafone Ltd ,Resources,Telephones,03/03/2016,14283426,1045.68
Lancaster City Council,30UH,Voodoo Room,Regeneration and Planning,Exhibitions & Events - % Above Guarantee,03/03/2016,257,1101.46
Lancaster City Council,30UH,VPS (UK) Limited,Environmental Services,Void Maintenance - External,31/03/2016,7358039,560.00
Lancaster City Council,30UH,Walton Summit Truck Centre Ltd.,Environmental Services,Purchase Of Vehicles Etc,11/02/2016,WSTC / 26783,12690.85
Lancaster City Council,30UH,Warden Construction Limited,Resources,Capital Payments To Contractors,10/02/2016,W10677,24181.96
Lancaster City Council,30UH,Water Sculptures,Environmental Services,Equipment Funded by Reserves,31/03/2016,A127,3765.00
Lancaster City Council,30UH,Water Sculptures,Regeneration and Planning,R & M - General,11/02/2016,A099,2440.00
Lancaster City Council,30UH,Weightmans LLP,Governance,Legal & Court Costs,17/02/2016,358526,4500.00
Lancaster City Council,30UH,Weldlag (Preston) Ltd,Resources,R & M - Buildings,06/01/2016,2079,11814.55
Lancaster City Council,30UH,West Coast Glass (Morecambe) Ltd,Environmental Services,Materials - General,18/01/2016,22624,564.19
Lancaster City Council,30UH,West Coast Glass (Morecambe) Ltd,Environmental Services,Materials - General,10/02/2016,22681,643.31
Lancaster City Council,30UH,West Coast Glass (Morecambe) Ltd,Environmental Services,Materials - General,14/03/2016,22705,530.61
Lancaster City Council,30UH,West Coast Glass (Morecambe) Ltd,Environmental Services,White Lund Stock,10/03/2016,22737/S,1044.00
Lancaster City Council,30UH,Westmorland Tree Care Ltd,Environmental Services,Materials - General,09/02/2016,5327,600.00
Lancaster City Council,30UH,Whinfield Study Trust,Health & Housing,Gas,12/01/2016,WHO151,887.72
Lancaster City Council,30UH,Whinfield Study Trust,Health & Housing,Gas,10/02/2016,WHO152,988.95
Lancaster City Council,30UH,Whinfield Study Trust,Health & Housing,Gas,18/03/2016,WHO153,1200.46
Lancaster City Council,30UH,Whinfield Study Trust,Health & Housing,Water Services,18/03/2016,WHO153,585.89
Lancaster City Council,30UH,Whistl UK Ltd,Resources,Postages,08/01/2016,IN18US15014303,723.15
Lancaster City Council,30UH,Whistl UK Ltd,Resources,Postages,10/02/2016,IN18US16000775,896.27
Lancaster City Council,30UH,Whistl UK Ltd,Resources,Postages,16/02/2016,IN18US16001418,1932.04
Lancaster City Council,30UH,Whistl UK Ltd,Resources,Postages,16/02/2016,IN18US16001423,1510.89
Lancaster City Council,30UH,Whistl UK Ltd,Resources,Postages,10/03/2016,IN18US16001661,1275.67
Lancaster City Council,30UH,Whistl UK Ltd,Resources,Postages,10/03/2016,IN18US16001892,797.31
Lancaster City Council,30UH,Whistl UK Ltd,Resources,Postages,10/03/2016,IN18US16002207,844.86
Lancaster City Council,30UH,Whistl UK Ltd,Resources,Postages,23/03/2016,IN18US16000593,951.80
Lancaster City Council,30UH,Whistl UK Ltd,Resources,Postages,23/03/2016,IN18US16000605,956.20
Lancaster City Council,30UH,Whistl UK Ltd,Resources,Postages,30/03/2016,IN18US16002340,1801.08
Lancaster City Council,30UH,Whistl UK Ltd,Resources,Postages,30/03/2016,IN18US16002693,1064.87
Lancaster City Council,30UH,Wilks Head & Eve,Resources,Legal & Court Costs,13/01/2016,42575,2300.00
Lancaster City Council,30UH,Willis Limited,Resources,Premises Related Insurance,11/02/2016,20932945,775.00
Lancaster City Council,30UH,Winckworth Sherwood LLP,Governance,Services - Consultants,30/03/2016,273178,11193.00
Lancaster City Council,30UH,Winckworth Sherwood LLP,Governance,Services - Consultants,30/03/2016,JB/35763/1,5900.00
Lancaster City Council,30UH,Winning Building Services,Environmental Services,Contracted Services,02/03/2016,00301,4380.00
Lancaster City Council,30UH,Winning Building Services,Environmental Services,R & M - Buildings,07/03/2016,00302,4000.00
Lancaster City Council,30UH,W & J Plasterers Ltd,Environmental Services,Contracted Services,21/01/2016,770,703.53
Lancaster City Council,30UH,W & J Plasterers Ltd,Environmental Services,Contracted Services,09/02/2016,786,1551.00
Lancaster City Council,30UH,W & J Plasterers Ltd,Environmental Services,Contracted Services,18/02/2016,794,4350.00
Lancaster City Council,30UH,W & J Plasterers Ltd,Environmental Services,Contracted Services,18/03/2016,801,2299.00
Lancaster City Council,30UH,W & J Plasterers Ltd,Environmental Services,Contracted Services,31/03/2016,793,674.00
Lancaster City Council,30UH,W & J Plasterers Ltd,Environmental Services,Contracted Services,31/03/2016,810,1520.00
Lancaster City Council,30UH,W J Wilkinson & Sons (Landscaping) Ltd,Environmental Services,Capital Payments To Contractors,08/03/2016,8173,29983.65
Lancaster City Council,30UH,W J Wilkinson & Sons (Landscaping) Ltd,Environmental Services,Capital Payments To Contractors,31/03/2016,8181,13280.24
Lancaster City Council,30UH,WYG Environment Planning Transport Ltd,Regeneration and Planning,Services - Consultants,11/02/2016,820891,7700.00
Lancaster City Council,30UH,Zurich Insurance PLC,Resources,Insurance Excess,03/03/2016,I1335,4774.00
